{"text_format":"1","workbook":"xlsx","n_sheets":4,"sheets":["Základní údaje","Rozpis úklidu","Karty úklidu","Činnosti úklidu"],"not_rendered":{"charts":0,"images":0,"macros":1,"external_links":0,"defined_names":4,"comments":3,"pivot_tables":0},"unopened":[],"bounds":{"document_bytes":16777216,"sheet_cells":100000,"rows_first":2000,"rows_last":500,"rows_between":2000,"halvings":0,"cell_chars":16384,"cell_head_chars":4096},"cells_cut":0,"cells_raw":0,"read":"whole","date_system":"1900"}

{"sheet":"Základní údaje","index":0,"n_rows":15,"n_cols":8,"rows_kept":15,"cut":false,"hidden":false,"merged":[[1,0,1,1],[8,3,8,6]]}
["kolej: Thalerova, VŠE"]
["OBDOBÍ:"]
["2025-03-01","2029-02-28"]
["Identifikace subjektu podávajícího nabídku:"]
["Název subjektu:"]
["IČ:"]
["Sídlo:"]
["Zapsaná v:"]
[null,null,null,"Předpoklad roční inflace"]
[null,null,null,"1. rok","2. rok","3. rok","4. rok"]
["CENA pracovní dny [Kč/hodinu/člověka]:",0,{"$f":"IF(B11<>0,B12/B11,0)","v":0},0,0,0,0]
["CENA víkendy a státní svátky[Kč/hodinu/člověka]:",0,{"$f":"IF(B11<>0,(5*B11+2*B12)/7/B11,0)","v":0},1,1,1,1]
[null,null,null,1,1,1,1,{"$f":"SUM(D13:G13)/4","v":1}]
[]
["CENA CELKEM ZA 4 ROKY:",{"$f":"'Rozpis úklidu'!B100:D100","v":0}]

{"sheet":"Rozpis úklidu","index":1,"n_rows":195,"n_cols":19,"rows_kept":195,"cut":false,"hidden":false,"merged":[[99,1,99,3]]}
[{"$f":"'Základní údaje'!A1","v":"kolej: Thalerova, VŠE"},"Období:",{"$f":"'Základní údaje'!A3","v":"2025-03-01"},{"$f":"'Základní údaje'!B3","v":"2029-02-28"},null,null,null,null,null,null,null,null,null,null,null,null,null,0,1]
["Cena za 1 úklidovou hodinu:",{"$f":"'Základní údaje'!B11","v":0},"Kč/hod. /",{"$f":"'Základní údaje'!B12","v":0},"Kč/hod."]
["Úklidová jednotka","plocha\n[m²]","kusy\n[-]","počet\núklidových jednotek","CELKEM\n[m²]\n[ks]","uklízí se","počet úklidů/\nčinností","sezonní\ntýden\nod","sezonní\ntýden\ndo","uklízí se v\npracovní dny","uklízí se o\nvíkendech","Popis činnosti","doporučený čas na úklidovou jednotku\n[min]","navrhovaný čas na úklidovou jednotku\n[min.]","celkový čas úklidu všech úklidových jednotek\n[hod.]","cena za úklidovou jednotku\n[Kč]","cena celkem za všechny úklidové jednotky \n(prac. dny)\n[Kč]","cena celkem za období úklidu\n[Kč]","Poznámka"]
["Suterén"]
["výtah",null,1,2,{"$f":"B5*D5+C5*D5","v":2},"denně",0.15,null,null,1,0,"Typová činnost č. 11",5,null,{"$f":"IF(N5=0,M5*D5/60,N5*D5/60)","v":0.16666666666666666},{"$f":"ROUND(IF(N5=0,M5/60*$B$2,N5/60*$B$2),0)","v":0},{"$f":"P5*D5","v":0},{"$f":"IF(F5=\"denně\",Q5*G5*$B$96,IF(F5=\"týdně\",Q5*G5*$B$97,IF(F5=\"měsíčně\",Q5*G5*$B$98,IF(F5=\"čtvrtletně\",Q5*G5*4*$B$99,IF(F5=\"ročně\",Q5*G5*$B$99,G5*Q5*$B$99)))))*'Základní údaje'!$H$13*IF(K51=1,'Základní údaje'!$C$12,1)","v":0}]
["010 -velká prádelna",27,null,1,27,"denně",0.15,null,null,1,0,"Typová činnost č. 4",25,null,0.41666666666666669,0,0,{"$f":"IF(F6=\"denně\",Q6*G6*$B$96,IF(F6=\"týdně\",Q6*G6*$B$97,IF(F6=\"měsíčně\",Q6*G6*$B$98,IF(F6=\"čtvrtletně\",Q6*G6*4*$B$99,IF(F6=\"ročně\",Q6*G6*$B$99,G6*Q6*$B$99)))))*'Základní údaje'!$H$13*IF(K52=1,'Základní údaje'!$C$12,1)","v":0}]
["010 - sušárna+ sušičky",10,null,1,10,"denně",0.15,null,null,1,0,"Typová činnost č. 3",10,null,0.16666666666666666,0,0,{"$f":"IF(F7=\"denně\",Q7*G7*$B$96,IF(F7=\"týdně\",Q7*G7*$B$97,IF(F7=\"měsíčně\",Q7*G7*$B$98,IF(F7=\"čtvrtletně\",Q7*G7*4*$B$99,IF(F7=\"ročně\",Q7*G7*$B$99,G7*Q7*$B$99)))))*'Základní údaje'!$H$13*IF(K53=1,'Základní údaje'!$C$12,1)","v":0}]
["031- sklad",33,null,1,33,"čtvrtletně",0.15,null,null,1,0,"Typová činnost č. 3",8,null,0.13333333333333333,0,0,{"$f":"IF(F8=\"denně\",Q8*G8*$B$96,IF(F8=\"týdně\",Q8*G8*$B$97,IF(F8=\"měsíčně\",Q8*G8*$B$98,IF(F8=\"čtvrtletně\",Q8*G8*4*$B$99,IF(F8=\"ročně\",Q8*G8*$B$99,G8*Q8*$B$99)))))*'Základní údaje'!$H$13*IF(K55=1,'Základní údaje'!$C$12,1)","v":0}]
["kotelna",48,null,1,48,"čtvrtletně",0.15,null,null,1,0,"Typová činnost č. 3",15,null,0.25,0,0,{"$f":"IF(F9=\"denně\",Q9*G9*$B$96,IF(F9=\"týdně\",Q9*G9*$B$97,IF(F9=\"měsíčně\",Q9*G9*$B$98,IF(F9=\"čtvrtletně\",Q9*G9*4*$B$99,IF(F9=\"ročně\",Q9*G9*$B$99,G9*Q9*$B$99)))))*'Základní údaje'!$H$13*IF(K56=1,'Základní údaje'!$C$12,1)","v":0}]
["011 -sklad nábytku",53,null,1,53,"čtvrtletně",0.15,null,null,1,0,"Typová činnost č. 3",10,null,0.16666666666666666,0,0,{"$f":"IF(F10=\"denně\",Q10*G10*$B$96,IF(F10=\"týdně\",Q10*G10*$B$97,IF(F10=\"měsíčně\",Q10*G10*$B$98,IF(F10=\"čtvrtletně\",Q10*G10*4*$B$99,IF(F10=\"ročně\",Q10*G10*$B$99,G10*Q10*$B$99)))))*'Základní údaje'!$H$13*IF(K56=1,'Základní údaje'!$C$12,1)","v":0}]
["056 -sklad lednice",56,null,1,56,"čtvrtletně",0.15,null,null,1,0,"Typová činnost č. 3",10,null,0.16666666666666666,0,0,{"$f":"IF(F11=\"denně\",Q11*G11*$B$96,IF(F11=\"týdně\",Q11*G11*$B$97,IF(F11=\"měsíčně\",Q11*G11*$B$98,IF(F11=\"čtvrtletně\",Q11*G11*4*$B$99,IF(F11=\"ročně\",Q11*G11*$B$99,G11*Q11*$B$99)))))*'Základní údaje'!$H$13*IF(K57=1,'Základní údaje'!$C$12,1)","v":0}]
["046 -sklad prádla",46,null,1,46,"týdně",0.15,null,null,1,0,"Typová činnost č. 3",12,null,0.2,0,0,{"$f":"IF(F12=\"denně\",Q12*G12*$B$96,IF(F12=\"týdně\",Q12*G12*$B$97,IF(F12=\"měsíčně\",Q12*G12*$B$98,IF(F12=\"čtvrtletně\",Q12*G12*4*$B$99,IF(F12=\"ročně\",Q12*G12*$B$99,G12*Q12*$B$99)))))*'Základní údaje'!$H$13*IF(K58=1,'Základní údaje'!$C$12,1)","v":0}]
["037 -sklad prádla -odpisy",49,null,1,49,"čtvrtletně",0.15,null,null,1,0,"Typová činnost č. 3",12,null,0.2,0,0,{"$f":"IF(F13=\"denně\",Q13*G13*$B$96,IF(F13=\"týdně\",Q13*G13*$B$97,IF(F13=\"měsíčně\",Q13*G13*$B$98,IF(F13=\"čtvrtletně\",Q13*G13*4*$B$99,IF(F13=\"ročně\",Q13*G13*$B$99,G13*Q13*$B$99)))))*'Základní údaje'!$H$13*IF(K59=1,'Základní údaje'!$C$12,1)","v":0}]
["053 -sklad drogerie",42,null,1,42,"čtvrtletně",0.15,null,null,1,0,"Typová činnost č. 3",11,null,0.18333333333333332,0,0,{"$f":"IF(F14=\"denně\",Q14*G14*$B$96,IF(F14=\"týdně\",Q14*G14*$B$97,IF(F14=\"měsíčně\",Q14*G14*$B$98,IF(F14=\"čtvrtletně\",Q14*G14*4*$B$99,IF(F14=\"ročně\",Q14*G14*$B$99,G14*Q14*$B$99)))))*'Základní údaje'!$H$13*IF(K60=1,'Základní údaje'!$C$12,1)","v":0}]
["024 -sklad ",58,null,1,58,"čtvrtletně",0.15,null,null,1,0,"Typová činnost č. 3",15,null,0.25,0,0,{"$f":"IF(F15=\"denně\",Q15*G15*$B$96,IF(F15=\"týdně\",Q15*G15*$B$97,IF(F15=\"měsíčně\",Q15*G15*$B$98,IF(F15=\"čtvrtletně\",Q15*G15*4*$B$99,IF(F15=\"ročně\",Q15*G15*$B$99,G15*Q15*$B$99)))))*'Základní údaje'!$H$13*IF(K61=1,'Základní údaje'!$C$12,1)","v":0}]
["020 -dílna",56,null,1,56,"měsíčně",0.15,null,null,1,0,"Typová činnost č. 3",20,null,0.33333333333333331,0,0,{"$f":"IF(F16=\"denně\",Q16*G16*$B$96,IF(F16=\"týdně\",Q16*G16*$B$97,IF(F16=\"měsíčně\",Q16*G16*$B$98,IF(F16=\"čtvrtletně\",Q16*G16*4*$B$99,IF(F16=\"ročně\",Q16*G16*$B$99,G16*Q16*$B$99)))))*'Základní údaje'!$H$13*IF(K62=1,'Základní údaje'!$C$12,1)","v":0}]
["038 -údržba",23,null,1,23,"měsíčně",0.15,null,null,1,0,"Typová činnost č. 3",10,null,0.16666666666666666,0,0,{"$f":"IF(F17=\"denně\",Q17*G17*$B$96,IF(F17=\"týdně\",Q17*G17*$B$97,IF(F17=\"měsíčně\",Q17*G17*$B$98,IF(F17=\"čtvrtletně\",Q17*G17*4*$B$99,IF(F17=\"ročně\",Q17*G17*$B$99,G17*Q17*$B$99)))))*'Základní údaje'!$H$13*IF(K63=1,'Základní údaje'!$C$12,1)","v":0}]
["wc + sprcha údržby",6,null,1,6,"týdně",0.15,null,null,1,0,"Typová činnost č. 14 a 15",10,null,0.16666666666666666,0,0,{"$f":"IF(F18=\"denně\",Q18*G18*$B$96,IF(F18=\"týdně\",Q18*G18*$B$97,IF(F18=\"měsíčně\",Q18*G18*$B$98,IF(F18=\"čtvrtletně\",Q18*G18*4*$B$99,IF(F18=\"ročně\",Q18*G18*$B$99,G18*Q18*$B$99)))))*'Základní údaje'!$H$13*IF(K64=1,'Základní údaje'!$C$12,1)","v":0}]
["036-sklad",23,null,1,23,"týdně",0.15,null,null,1,0,"Typová činnost č. 3",6,null,0.1,0,0,{"$f":"IF(F19=\"denně\",Q19*G19*$B$96,IF(F19=\"týdně\",Q19*G19*$B$97,IF(F19=\"měsíčně\",Q19*G19*$B$98,IF(F19=\"čtvrtletně\",Q19*G19*4*$B$99,IF(F19=\"ročně\",Q19*G19*$B$99,G19*Q19*$B$99)))))*'Základní údaje'!$H$13*IF(K65=1,'Základní údaje'!$C$12,1)","v":0}]
["wc + sprcha sklad 36",6,null,1,6,"týdně",0.15,null,null,1,0,"Typová činnost č. 14 a 15",10,null,0.16666666666666666,0,0,{"$f":"IF(F20=\"denně\",Q20*G20*$B$96,IF(F20=\"týdně\",Q20*G20*$B$97,IF(F20=\"měsíčně\",Q20*G20*$B$98,IF(F20=\"čtvrtletně\",Q20*G20*4*$B$99,IF(F20=\"ročně\",Q20*G20*$B$99,G20*Q20*$B$99)))))*'Základní údaje'!$H$13*IF(K68=1,'Základní údaje'!$C$12,1)","v":0}]
["chodba suterén",151,null,1,151,"týdně",1,null,null,1,0,"Typová činnost č. 1",50,null,0.83333333333333337,0,0,{"$f":"IF(F21=\"denně\",Q21*G21*$B$96,IF(F21=\"týdně\",Q21*G21*$B$97,IF(F21=\"měsíčně\",Q21*G21*$B$98,IF(F21=\"čtvrtletně\",Q21*G21*4*$B$99,IF(F21=\"ročně\",Q21*G21*$B$99,G21*Q21*$B$99)))))*'Základní údaje'!$H$13*IF(K69=1,'Základní údaje'!$C$12,1)","v":0}]
["162 - sklad lůžkovin",49,null,1,49,"týdně",0.15,null,null,1,0,"Typová činnost č. 1",12,null,0.2,0,0,{"$f":"IF(F22=\"denně\",Q22*G22*$B$96,IF(F22=\"týdně\",Q22*G22*$B$97,IF(F22=\"měsíčně\",Q22*G22*$B$98,IF(F22=\"čtvrtletně\",Q22*G22*4*$B$99,IF(F22=\"ročně\",Q22*G22*$B$99,G22*Q22*$B$99)))))*'Základní údaje'!$H$13*IF(K70=1,'Základní údaje'!$C$12,1)","v":0}]
["Přízemí"]
["recepce+balkon",54,null,1,54,"denně",0.15,null,null,1,0,"Typová činnost č. 2 a 3",30,null,0.5,{"$f":"ROUND(IF(N24=0,M24/60*$B$2,N24/60*$B$2),0)","v":0},0,{"$f":"IF(F24=\"denně\",Q24*G24*$B$96,IF(F24=\"týdně\",Q24*G24*$B$97,IF(F24=\"měsíčně\",Q24*G24*$B$98,IF(F24=\"čtvrtletně\",Q24*G24*4*$B$99,IF(F24=\"ročně\",Q24*G24*$B$99,G24*Q24*$B$99)))))*'Základní údaje'!$H$13*IF(K72=1,'Základní údaje'!$C$12,1)","v":0}]
["společenská místnost- kuchyň+ soc.zař+ balkon",48,null,1,48,"denně",0.15,null,null,1,0,"Typová činnost č. 2, 3, 5, 14 a 15",16,null,0.26666666666666666,0,0,{"$f":"IF(F25=\"denně\",Q25*G25*$B$96,IF(F25=\"týdně\",Q25*G25*$B$97,IF(F25=\"měsíčně\",Q25*G25*$B$98,IF(F25=\"čtvrtletně\",Q25*G25*4*$B$99,IF(F25=\"ročně\",Q25*G25*$B$99,G25*Q25*$B$99)))))*'Základní údaje'!$H$13*IF(K73=1,'Základní údaje'!$C$12,1)","v":0}]
["2x kancelář(vedoucí, zástup)",38,null,2,76,"týdně",0.15,null,null,1,0,"Typová činnost č. 3",19,null,0.6333333333333333,0,0,{"$f":"IF(F26=\"denně\",Q26*G26*$B$96,IF(F26=\"týdně\",Q26*G26*$B$97,IF(F26=\"měsíčně\",Q26*G26*$B$98,IF(F26=\"čtvrtletně\",Q26*G26*4*$B$99,IF(F26=\"ročně\",Q26*G26*$B$99,G26*Q26*$B$99)))))*'Základní údaje'!$H$13*IF(K74=1,'Základní údaje'!$C$12,1)","v":0}]
["předsíň",7,null,1,7,"týdně",0.15,null,null,1,0,"Typová činnost č. 3",1,null,1.6666666666666666E-2,0,0,{"$f":"IF(F27=\"denně\",Q27*G27*$B$96,IF(F27=\"týdně\",Q27*G27*$B$97,IF(F27=\"měsíčně\",Q27*G27*$B$98,IF(F27=\"čtvrtletně\",Q27*G27*4*$B$99,IF(F27=\"ročně\",Q27*G27*$B$99,G27*Q27*$B$99)))))*'Základní údaje'!$H$13*IF(K75=1,'Základní údaje'!$C$12,1)","v":0}]
["wc + sprcha  (vedení)",5,null,1,5,"týdně",0.15,null,null,1,0,"Typová činnost č. 14 a 15",8,null,0.13333333333333333,0,0,{"$f":"IF(F28=\"denně\",Q28*G28*$B$96,IF(F28=\"týdně\",Q28*G28*$B$97,IF(F28=\"měsíčně\",Q28*G28*$B$98,IF(F28=\"čtvrtletně\",Q28*G28*4*$B$99,IF(F28=\"ročně\",Q28*G28*$B$99,G28*Q28*$B$99)))))*'Základní údaje'!$H$13*IF(K76=1,'Základní údaje'!$C$12,1)","v":0}]
["chodba přízemí obě budovy",97,null,1,97,"denně",0.15,null,null,1,0,"Typová činnost č. 1",16,null,0.26666666666666666,0,0,{"$f":"IF(F29=\"denně\",Q29*G29*$B$96,IF(F29=\"týdně\",Q29*G29*$B$97,IF(F29=\"měsíčně\",Q29*G29*$B$98,IF(F29=\"čtvrtletně\",Q29*G29*4*$B$99,IF(F29=\"ročně\",Q29*G29*$B$99,G29*Q29*$B$99)))))*'Základní údaje'!$H$13*IF(K77=1,'Základní údaje'!$C$12,1)","v":0}]
["vstupní hala",75,null,1,75,"denně",0.15,null,null,1,0,"Typová činnost č. 1",31,null,0.51666666666666672,0,0,{"$f":"IF(F30=\"denně\",Q30*G30*$B$96,IF(F30=\"týdně\",Q30*G30*$B$97,IF(F30=\"měsíčně\",Q30*G30*$B$98,IF(F30=\"čtvrtletně\",Q30*G30*4*$B$99,IF(F30=\"ročně\",Q30*G30*$B$99,G30*Q30*$B$99)))))*'Základní údaje'!$H$13*IF(K79=1,'Základní údaje'!$C$12,1)","v":0}]
["vstupní schodiště přední",25,null,1,25,"denně",0.15,null,null,1,0,"Typová činnost č. 1",10,null,0.16666666666666666,0,0,{"$f":"IF(F31=\"denně\",Q31*G31*$B$96,IF(F31=\"týdně\",Q31*G31*$B$97,IF(F31=\"měsíčně\",Q31*G31*$B$98,IF(F31=\"čtvrtletně\",Q31*G31*4*$B$99,IF(F31=\"ročně\",Q31*G31*$B$99,G31*Q31*$B$99)))))*'Základní údaje'!$H$13*IF(K80=1,'Základní údaje'!$C$12,1)","v":0}]
["vstupní schodiště zadní",12,null,1,12,"týdně",0.15,null,null,1,0,"Typová činnost č. 1",5,null,8.3333333333333329E-2,0,0,{"$f":"IF(F32=\"denně\",Q32*G32*$B$96,IF(F32=\"týdně\",Q32*G32*$B$97,IF(F32=\"měsíčně\",Q32*G32*$B$98,IF(F32=\"čtvrtletně\",Q32*G32*4*$B$99,IF(F32=\"ročně\",Q32*G32*$B$99,G32*Q32*$B$99)))))*'Základní údaje'!$H$13*IF(K81=1,'Základní údaje'!$C$12,1)","v":0}]
["Stálý hotel"]
["Komfort.buňky,soc.zařízení,kuchyň\n+balkon HOTEL",47,null,38,1786,"sezonně",4,39,51,1,1,"Typová činnost č. 8",60,null,38,{"$f":"ROUND(IF(N34=0,M34/60*$B$2,N34/60*$B$2),0)","v":0},{"$f":"P34*D34","v":0},{"$f":"IF(F34=\"denně\",Q34*G34*$B$96,IF(F34=\"týdně\",Q34*G34*$B$97,IF(F34=\"měsíčně\",Q34*G34*$B$98,IF(F34=\"čtvrtletně\",Q34*G34*4*$B$99,IF(F34=\"ročně\",Q34*G34*$B$99,G34*Q34*$B$99)))))*'Základní údaje'!$H$13*IF(K85=1,'Základní údaje'!$C$12,1)","v":0}]
["Komfort.buňky,soc.zařízení,kuchyň+balkon HOTEL",47,null,38,1786,"sezonně",2,52,1,1,1,"Typová činnost č. 8",60,null,38,0,0,{"$f":"IF(F35=\"denně\",Q35*G35*$B$96,IF(F35=\"týdně\",Q35*G35*$B$97,IF(F35=\"měsíčně\",Q35*G35*$B$98,IF(F35=\"čtvrtletně\",Q35*G35*4*$B$99,IF(F35=\"ročně\",Q35*G35*$B$99,G35*Q35*$B$99)))))*'Základní údaje'!$H$13*IF(K86=1,'Základní údaje'!$C$12,1)","v":0}]
["Komfort.buňky,soc.zařízení,kuchyň+balkon HOTEL",47,null,38,1786,"sezonně",2,2,22,1,1,"Typová činnost č. 8",60,null,38,0,0,{"$f":"IF(F36=\"denně\",Q36*G36*$B$96,IF(F36=\"týdně\",Q36*G36*$B$97,IF(F36=\"měsíčně\",Q36*G36*$B$98,IF(F36=\"čtvrtletně\",Q36*G36*4*$B$99,IF(F36=\"ročně\",Q36*G36*$B$99,G36*Q36*$B$99)))))*'Základní údaje'!$H$13*IF(K87=1,'Základní údaje'!$C$12,1)","v":0}]
["Komfort.buňky,soc.zařízení,kuchyň+balkon HOTEL - průběžně",47,null,38,{"$f":"B37*D37+C37*D37","v":1786},"sezonně",40,23,38,1,1,"Typová činnost č. 9",30,null,{"$f":"IF(N37=0,M37*D37/60,N37*D37/60)","v":19},{"$f":"ROUND(IF(N37=0,M37/60*$B$2,N37/60*$B$2),0)","v":0},{"$f":"P37*D37","v":0},{"$f":"IF(F37=\"denně\",Q37*G37*$B$96,IF(F37=\"týdně\",Q37*G37*$B$97,IF(F37=\"měsíčně\",Q37*G37*$B$98,IF(F37=\"čtvrtletně\",Q37*G37*4*$B$99,IF(F37=\"ročně\",Q37*G37*$B$99,G37*Q37*$B$99)))))*'Základní údaje'!$H$13*IF(K87=1,'Základní údaje'!$C$12,1)","v":0}]
["Komfort.buňky,soc.zařízení,kuchyň+balkon HOTEL - po vystěhování",47,null,38,1786,"sezonně",40,23,38,1,1,"Typová činnost č. 8",60,null,38,0,0,{"$f":"IF(F38=\"denně\",Q38*G38*$B$96,IF(F38=\"týdně\",Q38*G38*$B$97,IF(F38=\"měsíčně\",Q38*G38*$B$98,IF(F38=\"čtvrtletně\",Q38*G38*4*$B$99,IF(F38=\"ročně\",Q38*G38*$B$99,G38*Q38*$B$99)))))*'Základní údaje'!$H$13*IF(K88=1,'Základní údaje'!$C$12,1)","v":0}]
["Studentská kapacita",null,null,null,null,null,null,null,null,null,null,null,0]
["Standard.buňka",null,null,null,null,null,null,null,null,null,null,null,0]
["buňka -koupelna",4,null,119,476,"ročně",0.33,null,null,1,0,"Typová činnost č. 15",15,null,29.75,{"$f":"ROUND(IF(N41=0,M41/60*$B$2,N41/60*$B$2),0)","v":0},{"$f":"P41*D41","v":0},{"$f":"IF(F41=\"denně\",Q41*G41*$B$96,IF(F41=\"týdně\",Q41*G41*$B$97,IF(F41=\"měsíčně\",Q41*G41*$B$98,IF(F41=\"čtvrtletně\",Q41*G41*4*$B$99,IF(F41=\"ročně\",Q41*G41*$B$99,G41*Q41*$B$99)))))*'Základní údaje'!$H$13*IF(K54=1,'Základní údaje'!$C$12,1)","v":0}]
["buňka-wc",1,null,119,119,"ročně",0.33,null,null,1,0,"Typová činnost č. 14",5,null,9.9166666666666661,0,0,{"$f":"IF(F42=\"denně\",Q42*G42*$B$96,IF(F42=\"týdně\",Q42*G42*$B$97,IF(F42=\"měsíčně\",Q42*G42*$B$98,IF(F42=\"čtvrtletně\",Q42*G42*4*$B$99,IF(F42=\"ročně\",Q42*G42*$B$99,G42*Q42*$B$99)))))*'Základní údaje'!$H$13*IF(K55=1,'Základní údaje'!$C$12,1)","v":0}]
["buňka-pokoj",14,null,{"$f":"2*119","v":238},3332,"ročně",0.33,null,null,1,0,"Typová činnost č. 6",15,null,59.5,0,0,{"$f":"IF(F43=\"denně\",Q43*G43*$B$96,IF(F43=\"týdně\",Q43*G43*$B$97,IF(F43=\"měsíčně\",Q43*G43*$B$98,IF(F43=\"čtvrtletně\",Q43*G43*4*$B$99,IF(F43=\"ročně\",Q43*G43*$B$99,G43*Q43*$B$99)))))*'Základní údaje'!$H$13*IF(K56=1,'Základní údaje'!$C$12,1)","v":0}]
["buňka-předsíň",14,null,119,1666,"ročně",0.33,null,null,1,0,"Typová činnost č. 7",15,null,29.75,0,0,{"$f":"IF(F44=\"denně\",Q44*G44*$B$96,IF(F44=\"týdně\",Q44*G44*$B$97,IF(F44=\"měsíčně\",Q44*G44*$B$98,IF(F44=\"čtvrtletně\",Q44*G44*4*$B$99,IF(F44=\"ročně\",Q44*G44*$B$99,G44*Q44*$B$99)))))*'Základní údaje'!$H$13*IF(K56=1,'Základní údaje'!$C$12,1)","v":0}]
["buňka-balkon",5,null,119,595,"ročně",0.33,null,null,1,0,"Typová činnost č. 2",6,null,11.9,0,0,{"$f":"IF(F45=\"denně\",Q45*G45*$B$96,IF(F45=\"týdně\",Q45*G45*$B$97,IF(F45=\"měsíčně\",Q45*G45*$B$98,IF(F45=\"čtvrtletně\",Q45*G45*4*$B$99,IF(F45=\"ročně\",Q45*G45*$B$99,G45*Q45*$B$99)))))*'Základní údaje'!$H$13*IF(K57=1,'Základní údaje'!$C$12,1)","v":0}]
["Komfort buňka",null,null,null,null,null,null,null,null,null,null,null,0]
["koupelna",4,null,32,{"$f":"B47*D47+C47*D47","v":128},"ročně",0.33,null,null,1,0,"Typová činnost č. 15",15,null,{"$f":"IF(N47=0,M47*D47/60,N47*D47/60)","v":8},{"$f":"ROUND(IF(N47=0,M47/60*$B$2,N47/60*$B$2),0)","v":0},{"$f":"P47*D47","v":0},{"$f":"IF(F47=\"denně\",Q47*G47*$B$96,IF(F47=\"týdně\",Q47*G47*$B$97,IF(F47=\"měsíčně\",Q47*G47*$B$98,IF(F47=\"čtvrtletně\",Q47*G47*4*$B$99,IF(F47=\"ročně\",Q47*G47*$B$99,G47*Q47*$B$99)))))*'Základní údaje'!$H$13*IF(K65=1,'Základní údaje'!$C$12,1)","v":0}]
["wc",1,null,32,{"$f":"B48*D48+C48*D48","v":32},"ročně",0.33,null,null,1,0,"Typová činnost č. 14",5,null,{"$f":"IF(N48=0,M48*D48/60,N48*D48/60)","v":2.6666666666666665},0,{"$f":"P48*D48","v":0},{"$f":"IF(F48=\"denně\",Q48*G48*$B$96,IF(F48=\"týdně\",Q48*G48*$B$97,IF(F48=\"měsíčně\",Q48*G48*$B$98,IF(F48=\"čtvrtletně\",Q48*G48*4*$B$99,IF(F48=\"ročně\",Q48*G48*$B$99,G48*Q48*$B$99)))))*'Základní údaje'!$H$13*IF(K62=1,'Základní údaje'!$C$12,1)","v":0}]
["pokoj",14,null,{"$f":"2*32","v":64},896,"ročně",0.33,null,null,1,0,"Typová činnost č. 6",15,null,16,0,0,{"$f":"IF(F49=\"denně\",Q49*G49*$B$96,IF(F49=\"týdně\",Q49*G49*$B$97,IF(F49=\"měsíčně\",Q49*G49*$B$98,IF(F49=\"čtvrtletně\",Q49*G49*4*$B$99,IF(F49=\"ročně\",Q49*G49*$B$99,G49*Q49*$B$99)))))*'Základní údaje'!$H$13*IF(K69=1,'Základní údaje'!$C$12,1)","v":0}]
["předsíň",14,null,32,448,"ročně",0.33,null,null,1,0,"Typová činnost č. 7",15,null,8,0,0,{"$f":"IF(F50=\"denně\",Q50*G50*$B$96,IF(F50=\"týdně\",Q50*G50*$B$97,IF(F50=\"měsíčně\",Q50*G50*$B$98,IF(F50=\"čtvrtletně\",Q50*G50*4*$B$99,IF(F50=\"ročně\",Q50*G50*$B$99,G50*Q50*$B$99)))))*'Základní údaje'!$H$13*IF(K70=1,'Základní údaje'!$C$12,1)","v":0}]
["balkon",5,null,32,160,"ročně",0.33,null,null,1,0,"Typová činnost č. 2",6,null,3.2,0,0,{"$f":"IF(F51=\"denně\",Q51*G51*$B$96,IF(F51=\"týdně\",Q51*G51*$B$97,IF(F51=\"měsíčně\",Q51*G51*$B$98,IF(F51=\"čtvrtletně\",Q51*G51*4*$B$99,IF(F51=\"ročně\",Q51*G51*$B$99,G51*Q51*$B$99)))))*'Základní údaje'!$H$13*IF(K71=1,'Základní údaje'!$C$12,1)","v":0}]
["Jednolůžkové pokoje",null,null,null,null,null,null,null,null,null,null,null,0]
["pokoj jednolůžkový-wc + koupelna",3,null,10,30,"ročně",0.1,null,null,1,0,"Typová činnost č. 14 a 15",10,null,1.6666666666666667,0,0,{"$f":"IF(F53=\"denně\",Q53*G53*$B$96,IF(F53=\"týdně\",Q53*G53*$B$97,IF(F53=\"měsíčně\",Q53*G53*$B$98,IF(F53=\"čtvrtletně\",Q53*G53*4*$B$99,IF(F53=\"ročně\",Q53*G53*$B$99,G53*Q53*$B$99)))))*'Základní údaje'!$H$13*IF(K73=1,'Základní údaje'!$C$12,1)","v":0}]
["pokoj jednolůžkový",6,null,10,60,"ročně",0.1,null,null,1,0,"Typová činnost č. 6",5,null,0.83333333333333337,0,0,{"$f":"IF(F54=\"denně\",Q54*G54*$B$96,IF(F54=\"týdně\",Q54*G54*$B$97,IF(F54=\"měsíčně\",Q54*G54*$B$98,IF(F54=\"čtvrtletně\",Q54*G54*4*$B$99,IF(F54=\"ročně\",Q54*G54*$B$99,G54*Q54*$B$99)))))*'Základní údaje'!$H$13*IF(K74=1,'Základní údaje'!$C$12,1)","v":0}]
["pokoj jednolůžkový-předsíň",2,null,10,20,"ročně",0.1,null,null,1,0,"Typová činnost č. 7",3,null,0.5,0,0,{"$f":"IF(F55=\"denně\",Q55*G55*$B$96,IF(F55=\"týdně\",Q55*G55*$B$97,IF(F55=\"měsíčně\",Q55*G55*$B$98,IF(F55=\"čtvrtletně\",Q55*G55*4*$B$99,IF(F55=\"ročně\",Q55*G55*$B$99,G55*Q55*$B$99)))))*'Základní údaje'!$H$13*IF(K75=1,'Základní údaje'!$C$12,1)","v":0}]
["Studovny velké",null,null,null,null,null,null,null,null,null,null,null,0]
["studovna velká 6. patro",49,null,1,49,"týdně",2,null,null,1,0,"Typová činnost č. 3",15,null,0.25,0,0,{"$f":"IF(F57=\"denně\",Q57*G57*$B$96,IF(F57=\"týdně\",Q57*G57*$B$97,IF(F57=\"měsíčně\",Q57*G57*$B$98,IF(F57=\"čtvrtletně\",Q57*G57*4*$B$99,IF(F57=\"ročně\",Q57*G57*$B$99,G57*Q57*$B$99)))))*'Základní údaje'!$H$13*IF(K79=1,'Základní údaje'!$C$12,1)","v":0}]
["studovna velká 7. patro",49,null,1,49,"týdně",2,null,null,1,0,"Typová činnost č. 3",15,null,0.25,0,0,{"$f":"IF(F58=\"denně\",Q58*G58*$B$96,IF(F58=\"týdně\",Q58*G58*$B$97,IF(F58=\"měsíčně\",Q58*G58*$B$98,IF(F58=\"čtvrtletně\",Q58*G58*4*$B$99,IF(F58=\"ročně\",Q58*G58*$B$99,G58*Q58*$B$99)))))*'Základní údaje'!$H$13*IF(K80=1,'Základní údaje'!$C$12,1)","v":0}]
["studovna velká 8. patro",49,null,1,49,"týdně",2,null,null,1,0,"Typová činnost č. 3",15,null,0.25,0,0,{"$f":"IF(F59=\"denně\",Q59*G59*$B$96,IF(F59=\"týdně\",Q59*G59*$B$97,IF(F59=\"měsíčně\",Q59*G59*$B$98,IF(F59=\"čtvrtletně\",Q59*G59*4*$B$99,IF(F59=\"ročně\",Q59*G59*$B$99,G59*Q59*$B$99)))))*'Základní údaje'!$H$13*IF(K81=1,'Základní údaje'!$C$12,1)","v":0}]
["studovna velká 9. patro",49,null,1,49,"týdně",2,null,null,1,0,"Typová činnost č. 3",15,null,0.25,0,0,{"$f":"IF(F60=\"denně\",Q60*G60*$B$96,IF(F60=\"týdně\",Q60*G60*$B$97,IF(F60=\"měsíčně\",Q60*G60*$B$98,IF(F60=\"čtvrtletně\",Q60*G60*4*$B$99,IF(F60=\"ročně\",Q60*G60*$B$99,G60*Q60*$B$99)))))*'Základní údaje'!$H$13*IF(K84=1,'Základní údaje'!$C$12,1)","v":0}]
["studovna velká 10. patro",49,null,1,49,"týdně",2,null,null,1,0,"Typová činnost č. 3",15,null,0.25,0,{"$f":"P61*D61","v":0},{"$f":"IF(F61=\"denně\",Q61*G61*$B$96,IF(F61=\"týdně\",Q61*G61*$B$97,IF(F61=\"měsíčně\",Q61*G61*$B$98,IF(F61=\"čtvrtletně\",Q61*G61*4*$B$99,IF(F61=\"ročně\",Q61*G61*$B$99,G61*Q61*$B$99)))))*'Základní údaje'!$H$13*IF(K83=1,'Základní údaje'!$C$12,1)","v":0}]
["studovna velká 11. patro",49,null,1,49,"týdně",2,null,null,1,0,"Typová činnost č. 3",15,null,0.25,0,0,{"$f":"IF(F62=\"denně\",Q62*G62*$B$96,IF(F62=\"týdně\",Q62*G62*$B$97,IF(F62=\"měsíčně\",Q62*G62*$B$98,IF(F62=\"čtvrtletně\",Q62*G62*4*$B$99,IF(F62=\"ročně\",Q62*G62*$B$99,G62*Q62*$B$99)))))*'Základní údaje'!$H$13*IF(K85=1,'Základní údaje'!$C$12,1)","v":0}]
["studovna velká - přilehlé balkony",5,null,6,{"$f":"B63*D63+C63*D63","v":30},"týdně",1,null,null,1,0,"Typová činnost č. 2",1,null,0.1,0,0,{"$f":"IF(F63=\"denně\",Q63*G63*$B$96,IF(F63=\"týdně\",Q63*G63*$B$97,IF(F63=\"měsíčně\",Q63*G63*$B$98,IF(F63=\"čtvrtletně\",Q63*G63*4*$B$99,IF(F63=\"ročně\",Q63*G63*$B$99,G63*Q63*$B$99)))))*'Základní údaje'!$H$13*IF(K86=1,'Základní údaje'!$C$12,1)","v":0}]
["wc k učebnám",7,null,4,28,"denně",1,null,null,1,0,"Typová činnost č. 14",10,null,0.66666666666666663,0,0,{"$f":"IF(F64=\"denně\",Q64*G64*$B$96,IF(F64=\"týdně\",Q64*G64*$B$97,IF(F64=\"měsíčně\",Q64*G64*$B$98,IF(F64=\"čtvrtletně\",Q64*G64*4*$B$99,IF(F64=\"ročně\",Q64*G64*$B$99,G64*Q64*$B$99)))))*'Základní údaje'!$H$13*IF(K84=1,'Základní údaje'!$C$12,1)","v":0}]
["Studovny malé",null,null,null,null,null,null,null,null,null,null,null,0]
["studovna malá 7. patro",22,null,1,{"$f":"B66*D66+C66*D66","v":22},"týdně",2,null,null,1,0,"Typová činnost č. 3",10,null,{"$f":"IF(N66=0,M66*D66/60,N66*D66/60)","v":0.16666666666666666},{"$f":"ROUND(IF(N66=0,M66/60*$B$2,N66/60*$B$2),0)","v":0},{"$f":"P66*D66","v":0},{"$f":"IF(F66=\"denně\",Q66*G66*$B$96,IF(F66=\"týdně\",Q66*G66*$B$97,IF(F66=\"měsíčně\",Q66*G66*$B$98,IF(F66=\"čtvrtletně\",Q66*G66*4*$B$99,IF(F66=\"ročně\",Q66*G66*$B$99,G66*Q66*$B$99)))))*'Základní údaje'!$H$13*IF(K84=1,'Základní údaje'!$C$12,1)","v":0}]
["studovna malá 8. patro",22,null,1,22,"týdně",2,null,null,1,0,"Typová činnost č. 3",10,null,0.16666666666666666,0,0,{"$f":"IF(F67=\"denně\",Q67*G67*$B$96,IF(F67=\"týdně\",Q67*G67*$B$97,IF(F67=\"měsíčně\",Q67*G67*$B$98,IF(F67=\"čtvrtletně\",Q67*G67*4*$B$99,IF(F67=\"ročně\",Q67*G67*$B$99,G67*Q67*$B$99)))))*'Základní údaje'!$H$13*IF(K83=1,'Základní údaje'!$C$12,1)","v":0}]
["studovna malá 9. patro",22,null,1,{"$f":"B68*D68+C68*D68","v":22},"týdně",2,null,null,1,0,"Typová činnost č. 3",10,null,0.16666666666666666,0,0,{"$f":"IF(F68=\"denně\",Q68*G68*$B$96,IF(F68=\"týdně\",Q68*G68*$B$97,IF(F68=\"měsíčně\",Q68*G68*$B$98,IF(F68=\"čtvrtletně\",Q68*G68*4*$B$99,IF(F68=\"ročně\",Q68*G68*$B$99,G68*Q68*$B$99)))))*'Základní údaje'!$H$13*IF(K85=1,'Základní údaje'!$C$12,1)","v":0}]
["studovna malá 10. patro",22,null,1,{"$f":"B69*D69+C69*D69","v":22},"týdně",2,null,null,1,0,"Typová činnost č. 3",10,null,0.16666666666666666,0,0,{"$f":"IF(F69=\"denně\",Q69*G69*$B$96,IF(F69=\"týdně\",Q69*G69*$B$97,IF(F69=\"měsíčně\",Q69*G69*$B$98,IF(F69=\"čtvrtletně\",Q69*G69*4*$B$99,IF(F69=\"ročně\",Q69*G69*$B$99,G69*Q69*$B$99)))))*'Základní údaje'!$H$13*IF(K86=1,'Základní údaje'!$C$12,1)","v":0}]
["studovna malá 11. patro",22,null,1,{"$f":"B70*D70+C70*D70","v":22},"týdně",2,null,null,1,0,"Typová činnost č. 3",10,null,0.16666666666666666,0,0,{"$f":"IF(F70=\"denně\",Q70*G70*$B$96,IF(F70=\"týdně\",Q70*G70*$B$97,IF(F70=\"měsíčně\",Q70*G70*$B$98,IF(F70=\"čtvrtletně\",Q70*G70*4*$B$99,IF(F70=\"ročně\",Q70*G70*$B$99,G70*Q70*$B$99)))))*'Základní údaje'!$H$13*IF(K87=1,'Základní údaje'!$C$12,1)","v":0}]
["dámská posilovna+balkon",55,null,1,55,"týdně",2,null,null,1,0,"Typová činnost č. 2 a 3",20,null,0.33333333333333331,0,0,{"$f":"IF(F71=\"denně\",Q71*G71*$B$96,IF(F71=\"týdně\",Q71*G71*$B$97,IF(F71=\"měsíčně\",Q71*G71*$B$98,IF(F71=\"čtvrtletně\",Q71*G71*4*$B$99,IF(F71=\"ročně\",Q71*G71*$B$99,G71*Q71*$B$99)))))*'Základní údaje'!$H$13*IF(K88=1,'Základní údaje'!$C$12,1)","v":0}]
["pánská posilovna+balkon",55,null,1,55,"týdně",2,null,null,1,0,"Typová činnost č. 2 a 3",20,null,0.33333333333333331,0,0,{"$f":"IF(F72=\"denně\",Q72*G72*$B$96,IF(F72=\"týdně\",Q72*G72*$B$97,IF(F72=\"měsíčně\",Q72*G72*$B$98,IF(F72=\"čtvrtletně\",Q72*G72*4*$B$99,IF(F72=\"ročně\",Q72*G72*$B$99,G72*Q72*$B$99)))))*'Základní údaje'!$H$13*IF(K89=1,'Základní údaje'!$C$12,1)","v":0}]
["tělocvična+balkon",55,null,1,55,"týdně",2,null,null,1,0,"Typová činnost č. 2 a 3",15,null,0.25,0,0,{"$f":"IF(F73=\"denně\",Q73*G73*$B$96,IF(F73=\"týdně\",Q73*G73*$B$97,IF(F73=\"měsíčně\",Q73*G73*$B$98,IF(F73=\"čtvrtletně\",Q73*G73*4*$B$99,IF(F73=\"ročně\",Q73*G73*$B$99,G73*Q73*$B$99)))))*'Základní údaje'!$H$13*IF(K90=1,'Základní údaje'!$C$12,1)","v":0}]
["Chodby a schodiště"]
["středové schodiště",11,null,6,66,"denně",1,null,null,1,0,"Typová činnost č. 1",5,null,0.5,0,0,{"$f":"IF(F75=\"denně\",Q75*G75*$B$96,IF(F75=\"týdně\",Q75*G75*$B$97,IF(F75=\"měsíčně\",Q75*G75*$B$98,IF(F75=\"čtvrtletně\",Q75*G75*4*$B$99,IF(F75=\"ročně\",Q75*G75*$B$99,G75*Q75*$B$99)))))*'Základní údaje'!$H$13*IF(K85=1,'Základní údaje'!$C$12,1)","v":0}]
["zábradlí - středové schodiště",null,1,6,{"$f":"B76*D76+C76*D76","v":6},"týdně",1,null,null,1,0,"omýt",3,null,0.3,0,0,{"$f":"IF(F76=\"denně\",Q76*G76*$B$96,IF(F76=\"týdně\",Q76*G76*$B$97,IF(F76=\"měsíčně\",Q76*G76*$B$98,IF(F76=\"čtvrtletně\",Q76*G76*4*$B$99,IF(F76=\"ročně\",Q76*G76*$B$99,G76*Q76*$B$99)))))*'Základní údaje'!$H$13*IF(K86=1,'Základní údaje'!$C$12,1)","v":0}]
["levé schodiště",9,null,11,99,"denně",1,null,null,1,0,"Typová činnost č. 1",5,null,0.91666666666666663,0,0,{"$f":"IF(F77=\"denně\",Q77*G77*$B$96,IF(F77=\"týdně\",Q77*G77*$B$97,IF(F77=\"měsíčně\",Q77*G77*$B$98,IF(F77=\"čtvrtletně\",Q77*G77*4*$B$99,IF(F77=\"ročně\",Q77*G77*$B$99,G77*Q77*$B$99)))))*'Základní údaje'!$H$13*IF(K87=1,'Základní údaje'!$C$12,1)","v":0}]
["zábradlí - levé schodiště",null,1,11,{"$f":"B78*D78+C78*D78","v":11},"týdně",1,null,null,1,0,"omýt",3,null,{"$f":"IF(N78=0,M78*D78/60,N78*D78/60)","v":0.55000000000000004},{"$f":"ROUND(IF(N78=0,M78/60*$B$2,N78/60*$B$2),0)","v":0},{"$f":"P78*D78","v":0},{"$f":"IF(F78=\"denně\",Q78*G78*$B$96,IF(F78=\"týdně\",Q78*G78*$B$97,IF(F78=\"měsíčně\",Q78*G78*$B$98,IF(F78=\"čtvrtletně\",Q78*G78*4*$B$99,IF(F78=\"ročně\",Q78*G78*$B$99,G78*Q78*$B$99)))))*'Základní údaje'!$H$13*IF(K88=1,'Základní údaje'!$C$12,1)","v":0}]
["pravé schodiště",9,null,12,108,"denně",1,null,null,1,0,"Typová činnost č. 1",5,null,1,0,{"$f":"P79*D79","v":0},{"$f":"IF(F79=\"denně\",Q79*G79*$B$96,IF(F79=\"týdně\",Q79*G79*$B$97,IF(F79=\"měsíčně\",Q79*G79*$B$98,IF(F79=\"čtvrtletně\",Q79*G79*4*$B$99,IF(F79=\"ročně\",Q79*G79*$B$99,G79*Q79*$B$99)))))*'Základní údaje'!$H$13*IF(K88=1,'Základní údaje'!$C$12,1)","v":0}]
["zábradlí - pravé schodiště",null,1,12,12,"týdně",1,null,null,1,0,"omýt",3,null,0.6,0,0,{"$f":"IF(F80=\"denně\",Q80*G80*$B$96,IF(F80=\"týdně\",Q80*G80*$B$97,IF(F80=\"měsíčně\",Q80*G80*$B$98,IF(F80=\"čtvrtletně\",Q80*G80*4*$B$99,IF(F80=\"ročně\",Q80*G80*$B$99,G80*Q80*$B$99)))))*'Základní údaje'!$H$13*IF(K92=1,'Základní údaje'!$C$12,1)","v":0}]
["schodiště na střechu, levá+pravá budova",9,null,4,36,"čtvrtletně",0.15,null,null,1,0,"Typová činnost č. 1",5,null,0.33333333333333331,0,0,{"$f":"IF(F81=\"denně\",Q81*G81*$B$96,IF(F81=\"týdně\",Q81*G81*$B$97,IF(F81=\"měsíčně\",Q81*G81*$B$98,IF(F81=\"čtvrtletně\",Q81*G81*4*$B$99,IF(F81=\"ročně\",Q81*G81*$B$99,G81*Q81*$B$99)))))*'Základní údaje'!$H$13*IF(K93=1,'Základní údaje'!$C$12,1)","v":0}]
["chodby 10 p.",89,null,1,{"$f":"B82*D82+C82*D82","v":89},"denně",0.15,null,null,1,0,"Typová činnost č. 1",15,null,{"$f":"IF(N82=0,M82*D82/60,N82*D82/60)","v":0.25},{"$f":"ROUND(IF(N82=0,M82/60*$B$2,N82/60*$B$2),0)","v":0},{"$f":"P82*D82","v":0},{"$f":"IF(F82=\"denně\",Q82*G82*$B$96,IF(F82=\"týdně\",Q82*G82*$B$97,IF(F82=\"měsíčně\",Q82*G82*$B$98,IF(F82=\"čtvrtletně\",Q82*G82*4*$B$99,IF(F82=\"ročně\",Q82*G82*$B$99,G82*Q82*$B$99)))))*'Základní údaje'!$H$13*IF(K99=1,'Základní údaje'!$C$12,1)","v":0}]
["chodby 11 p.",94,null,1,94,"denně",0.15,null,null,1,0,"Typová činnost č. 1",16,null,0.26666666666666666,0,0,{"$f":"IF(F83=\"denně\",Q83*G83*$B$96,IF(F83=\"týdně\",Q83*G83*$B$97,IF(F83=\"měsíčně\",Q83*G83*$B$98,IF(F83=\"čtvrtletně\",Q83*G83*4*$B$99,IF(F83=\"ročně\",Q83*G83*$B$99,G83*Q83*$B$99)))))*'Základní údaje'!$H$13*IF(K99=1,'Základní údaje'!$C$12,1)","v":0}]
["chodby 12 p.",33,null,1,{"$f":"B84*D84+C84*D84","v":33},"denně",0.15,null,null,1,0,"Typová činnost č. 1",6,null,{"$f":"IF(N84=0,M84*D84/60,N84*D84/60)","v":0.1},{"$f":"ROUND(IF(N84=0,M84/60*$B$2,N84/60*$B$2),0)","v":0},{"$f":"P84*D84","v":0},{"$f":"IF(F84=\"denně\",Q84*G84*$B$96,IF(F84=\"týdně\",Q84*G84*$B$97,IF(F84=\"měsíčně\",Q84*G84*$B$98,IF(F84=\"čtvrtletně\",Q84*G84*4*$B$99,IF(F84=\"ročně\",Q84*G84*$B$99,G84*Q84*$B$99)))))*'Základní údaje'!$H$13*IF(K98=1,'Základní údaje'!$C$12,1)","v":0}]
["chodby 2-9 p.",89,null,8,712,"denně",1,null,null,1,0,"Typová činnost č. 1",15,null,2,0,0,{"$f":"IF(F85=\"denně\",Q85*G85*$B$96,IF(F85=\"týdně\",Q85*G85*$B$97,IF(F85=\"měsíčně\",Q85*G85*$B$98,IF(F85=\"čtvrtletně\",Q85*G85*4*$B$99,IF(F85=\"ročně\",Q85*G85*$B$99,G85*Q85*$B$99)))))*'Základní údaje'!$H$13*IF(K100=1,'Základní údaje'!$C$12,1)","v":0}]
[]
["okna",null,1,{"$f":"(11*4+2+10*4+10*4+4)*2+12*4+20","v":328},328,"ročně",1,null,null,null,null,"Typová činnost č. 12",10,null,54.666666666666664,0,0,{"$f":"IF(F87=\"denně\",Q87*G87*$B$96,IF(F87=\"týdně\",Q87*G87*$B$97,IF(F87=\"měsíčně\",Q87*G87*$B$98,IF(F87=\"čtvrtletně\",Q87*G87*4*$B$99,IF(F87=\"ročně\",Q87*G87*$B$99,G87*Q87*$B$99)))))*'Základní údaje'!$H$13*IF(K109=1,'Základní údaje'!$C$12,1)","v":0}]
["Balkonové dveře",null,1,{"$f":"(11*4+2+10*4+10*4+4)*2+12*4","v":308},308,"ročně",1,null,null,null,null,"Typová činnost č. 12",10,null,{"$f":"IF(N88=0,M88*D88/60,N88*D88/60)","v":51.333333333333336},0,{"$f":"P88*D88","v":0},{"$f":"IF(F88=\"denně\",Q88*G88*$B$96,IF(F88=\"týdně\",Q88*G88*$B$97,IF(F88=\"měsíčně\",Q88*G88*$B$98,IF(F88=\"čtvrtletně\",Q88*G88*4*$B$99,IF(F88=\"ročně\",Q88*G88*$B$99,G88*Q88*$B$99)))))*'Základní údaje'!$H$13*IF(K110=1,'Základní údaje'!$C$12,1)","v":0}]
["Přebírání buněk a pokojů při vystěhování",null,1,{"$f":"74+111","v":185},185,"sezonně",1,26,28,null,null,"Typová činnost č. 10",5,null,15.416666666666666,0,0,{"$f":"IF(F89=\"denně\",Q89*G89*$B$96,IF(F89=\"týdně\",Q89*G89*$B$97,IF(F89=\"měsíčně\",Q89*G89*$B$98,IF(F89=\"čtvrtletně\",Q89*G89*4*$B$99,IF(F89=\"ročně\",Q89*G89*$B$99,G89*Q89*$B$99)))))*'Základní údaje'!$H$13*IF(K111=1,'Základní údaje'!$C$12,1)","v":0}]
["Přebírání buněk a pokojů při vystěhování, roznesení prádla",null,1,185,{"$f":"B90*D90+C90*D90","v":185},"sezonně",1,35,37,null,null,"Typová činnost č. 10",6,null,18.5,0,0,{"$f":"IF(F90=\"denně\",Q90*G90*$B$96,IF(F90=\"týdně\",Q90*G90*$B$97,IF(F90=\"měsíčně\",Q90*G90*$B$98,IF(F90=\"čtvrtletně\",Q90*G90*4*$B$99,IF(F90=\"ročně\",Q90*G90*$B$99,G90*Q90*$B$99)))))*'Základní údaje'!$H$13*IF(K112=1,'Základní údaje'!$C$12,1)","v":0}]
["vstupní dveře do koleje",{"$f":"3.3*2.5","v":8.25},null,3,24.75,"týdně",0.15,null,null,null,null,"Typová činnost č. 12",20,null,1,0,0,{"$f":"IF(F91=\"denně\",Q91*G91*$B$96,IF(F91=\"týdně\",Q91*G91*$B$97,IF(F91=\"měsíčně\",Q91*G91*$B$98,IF(F91=\"čtvrtletně\",Q91*G91*4*$B$99,IF(F91=\"ročně\",Q91*G91*$B$99,G91*Q91*$B$99)))))*'Základní údaje'!$H$13*IF(K113=1,'Základní údaje'!$C$12,1)","v":0}]
["kontrola pokoje před nastěhováním",null,1,185,185,"ročně",1,26,37,null,null,"Čisté ložní prádlo položit na postel a uklidit případné nedostatky v úklidu.",10,null,30.833333333333332,0,0,{"$f":"IF(F92=\"denně\",Q92*G92*$B$96,IF(F92=\"týdně\",Q92*G92*$B$97,IF(F92=\"měsíčně\",Q92*G92*$B$98,IF(F92=\"čtvrtletně\",Q92*G92*4*$B$99,IF(F92=\"ročně\",Q92*G92*$B$99,G92*Q92*$B$99)))))*'Základní údaje'!$H$13*IF(K114=1,'Základní údaje'!$C$12,1)","v":0}]
[]
["Plocha celkem",{"$f":"SUMPRODUCT(B4:B92,D4:D92)","v":19915.75},"[m²]"]
["Počet kusů celkem",{"$f":"SUMPRODUCT(C4:C92,D4:D92)","v":1222},"[-]"]
["Počet pracovních dnů úklidu:",{"$f":"NETWORKDAYS($C$1,$D$1,$A$103:$A$195)","v":1005}]
["Počet týdnů úklidu:",{"$f":"B99*52","v":208}]
["Počet měsíců úklidu:",{"$f":"B99*12","v":48}]
["Počet let úklidu",{"$f":"YEAR(D1)-YEAR(C1)","v":4}]
["CENA CELKEM:",{"$f":"ROUND(SUM(R4:R92),0)","v":0},null,null,"[Kč]"]
[]
["svátky:","četnost úklidu","označení","období úklidu",null,null,"Kritéria"]
["2023-04-07","denně",0,"1. Q",null,null,{"$f":"$F$3","v":"uklízí se"}]
["2023-04-10","týdně",1,"2. Q",null,null,{"$f":"B103","v":"denně"}]
["2023-05-01","měsíčně",null,"3. Q"]
["2023-05-08","čtvrtletně",null,"4. Q",null,null,{"$f":"$F$3","v":"uklízí se"}]
["2023-07-05","ročně",null,"leden",null,null,{"$f":"B104","v":"týdně"}]
["2023-07-06","sezonně",null,"únor"]
["2023-09-28",null,null,"březen",null,null,{"$f":"$F$3","v":"uklízí se"}]
["2023-11-17",null,null,"duben",null,null,{"$f":"B105","v":"měsíčně"}]
["2023-12-25",null,null,"květen"]
["2023-12-26",null,null,"červen",null,null,{"$f":"$F$3","v":"uklízí se"}]
["2024-01-01",null,null,"červenec",null,null,{"$f":"B106","v":"čtvrtletně"}]
["2024-03-29",null,null,"srpen"]
["2024-04-01",null,null,"září",null,null,{"$f":"$F$3","v":"uklízí se"}]
["2024-05-01",null,null,"říjen",null,null,{"$f":"B107","v":"ročně"}]
["2024-05-08",null,null,"listopat"]
["2024-07-05",null,null,"prosinec"]
["2024-10-28"]
["2024-12-24"]
["2024-12-26"]
["2024-12-26"]
["2025-01-01"]
["2025-04-18"]
["2025-04-21"]
["2025-10-28"]
["2025-11-17"]
["2025-12-24"]
["2025-12-25"]
["2025-12-26"]
["2026-01-01"]
["2026-04-03"]
["2026-04-06"]
["2026-05-01"]
["2026-05-08"]
["2026-07-05"]
["2026-07-06"]
["2026-09-28"]
["2026-10-28"]
["2026-11-17"]
["2026-12-24"]
["2026-12-25"]
["2026-12-26"]
["2027-01-01"]
["2027-03-26"]
["2027-03-29"]
["2027-05-01"]
["2027-05-08"]
["2027-07-05"]
["2027-07-06"]
["2027-09-28"]
["2027-10-28"]
["2027-11-17"]
["2027-12-24"]
["2027-12-25"]
["2027-12-26"]
["2028-01-01"]
["2028-04-14"]
["2028-04-17"]
["2028-05-01"]
["2028-05-08"]
["2028-07-05"]
["2028-07-06"]
["2028-09-28"]
["2028-10-28"]
["2028-11-17"]
["2028-12-24"]
["2028-12-25"]
["2028-12-26"]
["2029-01-01"]
["2029-03-30"]
["2029-04-02"]
["2029-05-01"]
["2029-05-08"]
["2029-07-05"]
["2029-07-06"]
["2029-09-28"]
["2029-10-28"]
["2029-11-17"]
["2029-12-24"]
["2029-12-25"]
["2029-12-26"]
["2030-01-01"]
["1930-04-19"]
["1930-04-22"]
["2030-05-01"]
["2030-05-08"]
["2030-07-05"]
["2030-07-06"]
["2030-09-28"]
["2030-10-28"]
["2030-11-17"]
["2030-12-24"]
["2030-12-25"]
["2030-12-26"]

{"sheet":"Karty úklidu","index":2,"n_rows":103,"n_cols":8,"rows_kept":103,"cut":false,"hidden":false,"merged":[]}
["Tisk: Ctrl+d"]
["Karta úklidu",null,null,{"$f":"'Rozpis úklidu'!A1","v":"kolej: Thalerova, VŠE"}]
["DENNÍ ÚKLID                       DNE:",{"$f":"NOW()","v":"2025-01-22T13:48:11.870"},{"$f":"CHOOSE(WEEKDAY(B3,2),\"pondělí\",\"úterý\",\"středa\",\"čtvrtek\",\"pátek\",\"sobota\",\"neděle\")","v":"středa"}]
["Úklidová jednotka","počet\núklidových jednotek","Doba úklidu\n[hod.]","Popis činnosti","cena celkem za všechny úklidové jednotky \n(prac. dny)\n[Kč]","Správně\nuklizené\njednotky","Smluvní pokuta\n[Kč]","Poznámka"]
[{"$f":"'Rozpis úklidu'!A64","v":"wc k učebnám"},{"$f":"'Rozpis úklidu'!D64*'Rozpis úklidu'!G64","v":4},{"$f":"IF('Rozpis úklidu'!N64=0,'Rozpis úklidu'!M64*B5/60,'Rozpis úklidu'!N64*B5/60)","v":0.66666666666666663},{"$f":"'Rozpis úklidu'!L64","v":"Typová činnost č. 14"},{"$f":"'Rozpis úklidu'!P64*F5","v":0},{"$f":"B5","v":4},{"$f":"IF(F5<B5,(B5-F5)*('Rozpis úklidu'!P64)*2,0)","v":0}]
[{"$f":"'Rozpis úklidu'!A75","v":"středové schodiště"},{"$f":"'Rozpis úklidu'!D75*'Rozpis úklidu'!G75","v":6},{"$f":"IF('Rozpis úklidu'!N75=0,'Rozpis úklidu'!M75*B6/60,'Rozpis úklidu'!N75*B6/60)","v":0.5},{"$f":"'Rozpis úklidu'!L75","v":"Typová činnost č. 1"},{"$f":"'Rozpis úklidu'!P75*F6","v":0},{"$f":"B6","v":6},{"$f":"IF(F6<B6,(B6-F6)*('Rozpis úklidu'!P75)*2,0)","v":0}]
[{"$f":"'Rozpis úklidu'!A77","v":"levé schodiště"},{"$f":"'Rozpis úklidu'!D77*'Rozpis úklidu'!G77","v":11},{"$f":"IF('Rozpis úklidu'!N77=0,'Rozpis úklidu'!M77*B7/60,'Rozpis úklidu'!N77*B7/60)","v":0.91666666666666663},{"$f":"'Rozpis úklidu'!L77","v":"Typová činnost č. 1"},{"$f":"'Rozpis úklidu'!P77*F7","v":0},{"$f":"B7","v":11},{"$f":"IF(F7<B7,(B7-F7)*('Rozpis úklidu'!P77)*2,0)","v":0}]
[{"$f":"'Rozpis úklidu'!A79","v":"pravé schodiště"},{"$f":"'Rozpis úklidu'!D79*'Rozpis úklidu'!G79","v":12},{"$f":"IF('Rozpis úklidu'!N79=0,'Rozpis úklidu'!M79*B8/60,'Rozpis úklidu'!N79*B8/60)","v":1},{"$f":"'Rozpis úklidu'!L79","v":"Typová činnost č. 1"},{"$f":"'Rozpis úklidu'!P79*F8","v":0},{"$f":"B8","v":12},{"$f":"IF(F8<B8,(B8-F8)*('Rozpis úklidu'!P79)*2,0)","v":0}]
[{"$f":"'Rozpis úklidu'!A85","v":"chodby 2-9 p."},{"$f":"'Rozpis úklidu'!D85*'Rozpis úklidu'!G85","v":8},{"$f":"IF('Rozpis úklidu'!N85=0,'Rozpis úklidu'!M85*B9/60,'Rozpis úklidu'!N85*B9/60)","v":2},{"$f":"'Rozpis úklidu'!L85","v":"Typová činnost č. 1"},{"$f":"'Rozpis úklidu'!P85*F9","v":0},{"$f":"B9","v":8},{"$f":"IF(F9<B9,(B9-F9)*('Rozpis úklidu'!P85)*2,0)","v":0}]
[{"$f":"'Rozpis úklidu'!A41","v":"buňka -koupelna"},null,{"$f":"IF('Rozpis úklidu'!N41=0,'Rozpis úklidu'!M41*B10/60,'Rozpis úklidu'!N41*B10/60)","v":0},{"$f":"'Rozpis úklidu'!L41","v":"Typová činnost č. 15"},{"$f":"'Rozpis úklidu'!P41*F10","v":0},{"$f":"B10","v":0},{"$f":"IF(F10<B10,(B10-F10)*('Rozpis úklidu'!P41)*2,0)","v":0}]
[{"$f":"'Rozpis úklidu'!A42","v":"buňka-wc"},null,{"$f":"IF('Rozpis úklidu'!N42=0,'Rozpis úklidu'!M42*B11/60,'Rozpis úklidu'!N42*B11/60)","v":0},{"$f":"'Rozpis úklidu'!L42","v":"Typová činnost č. 14"},{"$f":"'Rozpis úklidu'!P42*F11","v":0},{"$f":"B11","v":0},{"$f":"IF(F11<B11,(B11-F11)*('Rozpis úklidu'!P42)*2,0)","v":0}]
[{"$f":"'Rozpis úklidu'!A43","v":"buňka-pokoj"},null,{"$f":"IF('Rozpis úklidu'!N43=0,'Rozpis úklidu'!M43*B12/60,'Rozpis úklidu'!N43*B12/60)","v":0},{"$f":"'Rozpis úklidu'!L43","v":"Typová činnost č. 6"},{"$f":"'Rozpis úklidu'!P43*F12","v":0},0,{"$f":"IF(F12<B12,(B12-F12)*('Rozpis úklidu'!P43)*2,0)","v":0}]
[{"$f":"'Rozpis úklidu'!A44","v":"buňka-předsíň"},null,{"$f":"IF('Rozpis úklidu'!N44=0,'Rozpis úklidu'!M44*B13/60,'Rozpis úklidu'!N44*B13/60)","v":0},{"$f":"'Rozpis úklidu'!L44","v":"Typová činnost č. 7"},{"$f":"'Rozpis úklidu'!P44*F13","v":0},0,{"$f":"IF(F13<B13,(B13-F13)*('Rozpis úklidu'!P44)*2,0)","v":0}]
[{"$f":"'Rozpis úklidu'!A45","v":"buňka-balkon"},null,{"$f":"IF('Rozpis úklidu'!N45=0,'Rozpis úklidu'!M45*B14/60,'Rozpis úklidu'!N45*B14/60)","v":0},{"$f":"'Rozpis úklidu'!L45","v":"Typová činnost č. 2"},{"$f":"'Rozpis úklidu'!P45*F14","v":0},0,{"$f":"IF(F14<B14,(B14-F14)*('Rozpis úklidu'!P45)*2,0)","v":0}]
[{"$f":"'Rozpis úklidu'!A89","v":"Přebírání buněk a pokojů při vystěhování"},null,{"$f":"IF('Rozpis úklidu'!N89=0,'Rozpis úklidu'!M89*B15/60,'Rozpis úklidu'!N89*B15/60)","v":0},{"$f":"'Rozpis úklidu'!L89","v":"Typová činnost č. 10"},{"$f":"'Rozpis úklidu'!P89*F15","v":0},{"$f":"B15","v":0},{"$f":"IF(F15<B15,(B15-F15)*('Rozpis úklidu'!P89)*2,0)","v":0}]
[{"$f":"'Rozpis úklidu'!A90","v":"Přebírání buněk a pokojů při vystěhování, roznesení prádla"},null,{"$f":"IF('Rozpis úklidu'!N90=0,'Rozpis úklidu'!M90*B16/60,'Rozpis úklidu'!N90*B16/60)","v":0},{"$f":"'Rozpis úklidu'!L90","v":"Typová činnost č. 10"},{"$f":"'Rozpis úklidu'!P90*F16","v":0},{"$f":"B16","v":0},{"$f":"IF(F16<B16,(B16-F16)*('Rozpis úklidu'!P90)*2,0)","v":0}]
[{"$f":"'Rozpis úklidu'!A92","v":"kontrola pokoje před nastěhováním"},null,{"$f":"IF('Rozpis úklidu'!N92=0,'Rozpis úklidu'!M92*B17/60,'Rozpis úklidu'!N92*B17/60)","v":0},{"$f":"'Rozpis úklidu'!L92","v":"Čisté ložní prádlo položit na postel a uklidit případné nedostatky v úklidu."},{"$f":"'Rozpis úklidu'!P92*F17","v":0},{"$f":"B17","v":0},{"$f":"IF(F17<B17,(B17-F17)*('Rozpis úklidu'!P92)*2,0)","v":0}]
["Operativní úklidové práce dle požadavku vedoucí koleje",{"$f":"'Základní údaje'!B11","v":0},{"$f":"F18/60","v":0},null,{"$f":"B18/60*F18","v":0},0]
["Celkem hodin (den / rozpočítaný týden a měsíc):",null,{"$f":"CONCATENATE(FIXED(SUM(C5:C18),2),\" / \",FIXED(SUM(C5:C18)+C40,2))","v":"5,08 / 6,53"},"K FAKTURACI CELKEM:",{"$f":"SUM(E5:E18)","v":0},null,{"$f":"SUM(G5:G18)","v":0}]
["Podpis vedoucí směny:",null,null,"Podpis zástupce vedení koleje:",null,null,null,{"$f":"E19*20.5+E40*4.25","v":0}]
["Tisk: Ctrl+t"]
["Karta úklidu",null,null,{"$f":"'Rozpis úklidu'!A1","v":"kolej: Thalerova, VŠE"}]
["TÝDENNÍ ÚKLID                 TÝDEN:",{"$f":"WEEKNUM(TODAY(),1)","v":4},null,{"$f":"(NOW())","v":"2025-01-22T13:48:11.870"}]
["Úklidová jednotka","počet\núklidových jednotek","Doba úklidu\n[hod.]","Popis činnosti","cena celkem za všechny úklidové jednotky \n(prac. dny)\n[Kč]","Správně\nuklizené\njednotky","Smluvní pokuta\n[Kč]","Poznámka"]
[{"$f":"'Rozpis úklidu'!A21","v":"chodba suterén"},{"$f":"'Rozpis úklidu'!D21*'Rozpis úklidu'!G21","v":1},{"$f":"IF('Rozpis úklidu'!N21=0,'Rozpis úklidu'!M21*B25/60,'Rozpis úklidu'!N21*B25/60)","v":0.83333333333333337},{"$f":"'Rozpis úklidu'!L21","v":"Typová činnost č. 1"},{"$f":"'Rozpis úklidu'!P21*F25","v":0},{"$f":"B25","v":1},{"$f":"IF(F25<B25,(B25-F25)*('Rozpis úklidu'!P21)*2,0)","v":0}]
[{"$f":"'Rozpis úklidu'!A76","v":"zábradlí - středové schodiště"},{"$f":"'Rozpis úklidu'!D76*'Rozpis úklidu'!G76","v":6},{"$f":"IF('Rozpis úklidu'!N76=0,'Rozpis úklidu'!M76*B26/60,'Rozpis úklidu'!N76*B26/60)","v":0.3},{"$f":"'Rozpis úklidu'!L76","v":"omýt"},{"$f":"'Rozpis úklidu'!P76*F26","v":0},{"$f":"B26","v":6},{"$f":"IF(F26<B26,(B26-F26)*('Rozpis úklidu'!P76)*2,0)","v":0}]
[{"$f":"'Rozpis úklidu'!A78","v":"zábradlí - levé schodiště"},{"$f":"'Rozpis úklidu'!D78*'Rozpis úklidu'!G78","v":11},{"$f":"IF('Rozpis úklidu'!N78=0,'Rozpis úklidu'!M78*B27/60,'Rozpis úklidu'!N78*B27/60)","v":0.55000000000000004},{"$f":"'Rozpis úklidu'!L78","v":"omýt"},{"$f":"'Rozpis úklidu'!P78*F27","v":0},11,{"$f":"IF(F27<B27,(B27-F27)*('Rozpis úklidu'!P78)*2,0)","v":0}]
[{"$f":"'Rozpis úklidu'!A80","v":"zábradlí - pravé schodiště"},{"$f":"'Rozpis úklidu'!D80*'Rozpis úklidu'!G80","v":12},{"$f":"IF('Rozpis úklidu'!N80=0,'Rozpis úklidu'!M80*B28/60,'Rozpis úklidu'!N80*B28/60)","v":0.6},{"$f":"'Rozpis úklidu'!L80","v":"omýt"},{"$f":"'Rozpis úklidu'!P80*F28","v":0},12,{"$f":"IF(F28<B28,(B28-F28)*('Rozpis úklidu'!P80)*2,0)","v":0}]
[{"$f":"'Rozpis úklidu'!A57","v":"studovna velká 6. patro"},{"$f":"'Rozpis úklidu'!D57*'Rozpis úklidu'!G57","v":2},{"$f":"IF('Rozpis úklidu'!N57=0,'Rozpis úklidu'!M57*B29/60,'Rozpis úklidu'!N57*B29/60)","v":0.5},{"$f":"'Rozpis úklidu'!L57","v":"Typová činnost č. 3"},{"$f":"'Rozpis úklidu'!P57*F29","v":0},{"$f":"B29","v":2},{"$f":"IF(F29<B29,(B29-F29)*('Rozpis úklidu'!P57)*2,0)","v":0}]
[{"$f":"'Rozpis úklidu'!A58","v":"studovna velká 7. patro"},{"$f":"'Rozpis úklidu'!D58*'Rozpis úklidu'!G58","v":2},{"$f":"IF('Rozpis úklidu'!N58=0,'Rozpis úklidu'!M58*B30/60,'Rozpis úklidu'!N58*B30/60)","v":0.5},{"$f":"'Rozpis úklidu'!L58","v":"Typová činnost č. 3"},{"$f":"'Rozpis úklidu'!P58*F30","v":0},{"$f":"B30","v":2},{"$f":"IF(F30<B30,(B30-F30)*('Rozpis úklidu'!P58)*2,0)","v":0}]
[{"$f":"'Rozpis úklidu'!A59","v":"studovna velká 8. patro"},{"$f":"'Rozpis úklidu'!D59*'Rozpis úklidu'!G59","v":2},{"$f":"IF('Rozpis úklidu'!N59=0,'Rozpis úklidu'!M59*B31/60,'Rozpis úklidu'!N59*B31/60)","v":0.5},{"$f":"'Rozpis úklidu'!L59","v":"Typová činnost č. 3"},{"$f":"'Rozpis úklidu'!P59*F31","v":0},2,{"$f":"IF(F31<B31,(B31-F31)*('Rozpis úklidu'!P59)*2,0)","v":0}]
[{"$f":"'Rozpis úklidu'!A60","v":"studovna velká 9. patro"},{"$f":"'Rozpis úklidu'!D60*'Rozpis úklidu'!G60","v":2},{"$f":"IF('Rozpis úklidu'!N60=0,'Rozpis úklidu'!M60*B32/60,'Rozpis úklidu'!N60*B32/60)","v":0.5},{"$f":"'Rozpis úklidu'!L60","v":"Typová činnost č. 3"},{"$f":"'Rozpis úklidu'!P60*F32","v":0},2,{"$f":"IF(F32<B32,(B32-F32)*('Rozpis úklidu'!P60)*2,0)","v":0}]
[{"$f":"'Rozpis úklidu'!A63","v":"studovna velká - přilehlé balkony"},{"$f":"'Rozpis úklidu'!D63*'Rozpis úklidu'!G63","v":6},{"$f":"IF('Rozpis úklidu'!N63=0,'Rozpis úklidu'!M63*B33/60,'Rozpis úklidu'!N63*B33/60)","v":0.1},{"$f":"'Rozpis úklidu'!L63","v":"Typová činnost č. 2"},{"$f":"'Rozpis úklidu'!P63*F33","v":0},6,{"$f":"IF(F33<B33,(B33-F33)*('Rozpis úklidu'!P63)*2,0)","v":0}]
[{"$f":"'Rozpis úklidu'!A66","v":"studovna malá 7. patro"},{"$f":"'Rozpis úklidu'!D66*'Rozpis úklidu'!G66","v":2},{"$f":"IF('Rozpis úklidu'!N66=0,'Rozpis úklidu'!M66*B34/60,'Rozpis úklidu'!N64*B34/60)","v":0.33333333333333331},{"$f":"'Rozpis úklidu'!L66","v":"Typová činnost č. 3"},{"$f":"'Rozpis úklidu'!P66*F34","v":0},{"$f":"B34","v":2},{"$f":"IF(F34<B34,(B34-F34)*('Rozpis úklidu'!P66)*2,0)","v":0}]
[{"$f":"'Rozpis úklidu'!A67","v":"studovna malá 8. patro"},{"$f":"'Rozpis úklidu'!D67*'Rozpis úklidu'!G67","v":2},{"$f":"IF('Rozpis úklidu'!N67=0,'Rozpis úklidu'!M67*B35/60,'Rozpis úklidu'!N65*B35/60)","v":0.33333333333333331},{"$f":"'Rozpis úklidu'!L67","v":"Typová činnost č. 3"},{"$f":"'Rozpis úklidu'!P67*F35","v":0},{"$f":"B35","v":2},{"$f":"IF(F35<B35,(B35-F35)*('Rozpis úklidu'!P67)*2,0)","v":0}]
[{"$f":"'Rozpis úklidu'!A68","v":"studovna malá 9. patro"},{"$f":"'Rozpis úklidu'!D68*'Rozpis úklidu'!G68","v":2},{"$f":"IF('Rozpis úklidu'!N68=0,'Rozpis úklidu'!M68*B36/60,'Rozpis úklidu'!N68*B36/60)","v":0.33333333333333331},{"$f":"'Rozpis úklidu'!L68","v":"Typová činnost č. 3"},{"$f":"'Rozpis úklidu'!P68*F36","v":0},2,{"$f":"IF(F36<B36,(B36-F36)*('Rozpis úklidu'!P68)*2,0)","v":0}]
[{"$f":"'Rozpis úklidu'!A71","v":"dámská posilovna+balkon"},{"$f":"'Rozpis úklidu'!D71*'Rozpis úklidu'!G71","v":2},{"$f":"IF('Rozpis úklidu'!N71=0,'Rozpis úklidu'!M71*B37/60,'Rozpis úklidu'!N71*B37/60)","v":0.66666666666666663},{"$f":"'Rozpis úklidu'!L71","v":"Typová činnost č. 2 a 3"},{"$f":"'Rozpis úklidu'!P71*F37","v":0},2,{"$f":"IF(F37<B37,(B37-F37)*('Rozpis úklidu'!P71)*2,0)","v":0}]
[{"$f":"'Rozpis úklidu'!A72","v":"pánská posilovna+balkon"},{"$f":"'Rozpis úklidu'!D72*'Rozpis úklidu'!G72","v":2},{"$f":"IF('Rozpis úklidu'!N72=0,'Rozpis úklidu'!M72*B38/60,'Rozpis úklidu'!N72*B38/60)","v":0.66666666666666663},{"$f":"'Rozpis úklidu'!L72","v":"Typová činnost č. 2 a 3"},{"$f":"'Rozpis úklidu'!P72*F38","v":0},2,{"$f":"IF(F38<B38,(B38-F38)*('Rozpis úklidu'!P72)*2,0)","v":0}]
[{"$f":"'Rozpis úklidu'!A73","v":"tělocvična+balkon"},{"$f":"'Rozpis úklidu'!D73*'Rozpis úklidu'!G73","v":2},{"$f":"IF('Rozpis úklidu'!N73=0,'Rozpis úklidu'!M73*B39/60,'Rozpis úklidu'!N73*B39/60)","v":0.5},{"$f":"'Rozpis úklidu'!L73","v":"Typová činnost č. 2 a 3"},{"$f":"'Rozpis úklidu'!P73*F39","v":0},2,{"$f":"IF(F39<B39,(B39-F39)*('Rozpis úklidu'!P73)*2,0)","v":0}]
[null,"celkem [hodin/den]",{"$f":"SUM(C25:C39)/5","v":1.4433333333333331},"K FAKTURACI CELKEM:",{"$f":"SUM(E25:E39)","v":0},null,{"$f":"SUM(G25:G39)","v":0}]
["Podpis vedoucí směny:",null,null,"Podpis zástupce vedení koleje:"]
["Tisk: Ctrl+p"]
["Karta úklidu",null,null,{"$f":"'Rozpis úklidu'!A1","v":"kolej: Thalerova, VŠE"}]
["VÝPOMOC                                    DEN:",{"$f":"NOW()","v":"2025-01-22T13:48:11.870"},{"$f":"CHOOSE(WEEKDAY(B44,2),\"pondělí\",\"úterý\",\"středa\",\"čtvrtek\",\"pátek\",\"sobota\",\"neděle\")","v":"středa"}]
["Úklidová jednotka","počet\núklidových jednotek","Doba úklidu\n[hod.]","Popis činnosti","cena celkem za všechny úklidové jednotky \n(prac. dny)\n[Kč]","Správně\nuklizené\njednotky","Smluvní pokuta\n[Kč]","Poznámka"]
[{"$f":"CONCATENATE('Rozpis úklidu'!A5,\" / frekvence: \",'Rozpis úklidu'!F5)","v":"výtah / frekvence: denně"},null,{"$f":"IF('Rozpis úklidu'!N5=0,'Rozpis úklidu'!M5*B46/60,'Rozpis úklidu'!N5*B46/60)","v":0},{"$f":"'Rozpis úklidu'!L5","v":"Typová činnost č. 11"},{"$f":"'Rozpis úklidu'!P5*F46","v":0},{"$f":"B46","v":0},{"$f":"IF(F46<B46,(B46-F46)*('Rozpis úklidu'!P5)*2,0)","v":0}]
[{"$f":"CONCATENATE('Rozpis úklidu'!A6,\" / frekvence: \",'Rozpis úklidu'!F6)","v":"010 -velká prádelna / frekvence: denně"},null,{"$f":"IF('Rozpis úklidu'!N6=0,'Rozpis úklidu'!M6*B47/60,'Rozpis úklidu'!N6*B47/60)","v":0},{"$f":"'Rozpis úklidu'!L6","v":"Typová činnost č. 4"},{"$f":"'Rozpis úklidu'!P6*F47","v":0},{"$f":"B47","v":0},{"$f":"IF(F47<B47,(B47-F47)*('Rozpis úklidu'!P6)*2,0)","v":0}]
[{"$f":"CONCATENATE('Rozpis úklidu'!A7,\" / frekvence: \",'Rozpis úklidu'!F7)","v":"010 - sušárna+ sušičky / frekvence: denně"},null,{"$f":"IF('Rozpis úklidu'!N7=0,'Rozpis úklidu'!M7*B48/60,'Rozpis úklidu'!N7*B48/60)","v":0},{"$f":"'Rozpis úklidu'!L7","v":"Typová činnost č. 3"},{"$f":"'Rozpis úklidu'!P7*F48","v":0},0,{"$f":"IF(F48<B48,(B48-F48)*('Rozpis úklidu'!P7)*2,0)","v":0}]
[{"$f":"CONCATENATE('Rozpis úklidu'!A8,\" / frekvence: \",'Rozpis úklidu'!F8)","v":"031- sklad / frekvence: čtvrtletně"},null,{"$f":"IF('Rozpis úklidu'!N8=0,'Rozpis úklidu'!M8*B49/60,'Rozpis úklidu'!N8*B49/60)","v":0},{"$f":"'Rozpis úklidu'!L8","v":"Typová činnost č. 3"},{"$f":"'Rozpis úklidu'!P8*F49","v":0},0,{"$f":"IF(F49<B49,(B49-F49)*('Rozpis úklidu'!P8)*2,0)","v":0}]
[{"$f":"CONCATENATE('Rozpis úklidu'!A9,\" / frekvence: \",'Rozpis úklidu'!F9)","v":"kotelna / frekvence: čtvrtletně"},null,{"$f":"IF('Rozpis úklidu'!N9=0,'Rozpis úklidu'!M9*B50/60,'Rozpis úklidu'!N9*B50/60)","v":0},{"$f":"'Rozpis úklidu'!L9","v":"Typová činnost č. 3"},{"$f":"'Rozpis úklidu'!P9*F50","v":0},0,{"$f":"IF(F50<B50,(B50-F50)*('Rozpis úklidu'!P9)*2,0)","v":0}]
[{"$f":"CONCATENATE('Rozpis úklidu'!A10,\" / frekvence: \",'Rozpis úklidu'!F10)","v":"011 -sklad nábytku / frekvence: čtvrtletně"},null,{"$f":"IF('Rozpis úklidu'!N10=0,'Rozpis úklidu'!M10*B51/60,'Rozpis úklidu'!N10*B51/60)","v":0},{"$f":"'Rozpis úklidu'!L10","v":"Typová činnost č. 3"},{"$f":"'Rozpis úklidu'!P10*F51","v":0},0,{"$f":"IF(F51<B51,(B51-F51)*('Rozpis úklidu'!P10)*2,0)","v":0}]
[{"$f":"CONCATENATE('Rozpis úklidu'!A11,\" / frekvence: \",'Rozpis úklidu'!F11)","v":"056 -sklad lednice / frekvence: čtvrtletně"},null,{"$f":"IF('Rozpis úklidu'!N11=0,'Rozpis úklidu'!M11*B52/60,'Rozpis úklidu'!N11*B52/60)","v":0},{"$f":"'Rozpis úklidu'!L11","v":"Typová činnost č. 3"},{"$f":"'Rozpis úklidu'!P11*F52","v":0},0,{"$f":"IF(F52<B52,(B52-F52)*('Rozpis úklidu'!P11)*2,0)","v":0}]
[{"$f":"CONCATENATE('Rozpis úklidu'!A12,\" / frekvence: \",'Rozpis úklidu'!F12)","v":"046 -sklad prádla / frekvence: týdně"},null,{"$f":"IF('Rozpis úklidu'!N12=0,'Rozpis úklidu'!M12*B53/60,'Rozpis úklidu'!N12*B53/60)","v":0},{"$f":"'Rozpis úklidu'!L12","v":"Typová činnost č. 3"},{"$f":"'Rozpis úklidu'!P12*F53","v":0},0,{"$f":"IF(F53<B53,(B53-F53)*('Rozpis úklidu'!P12)*2,0)","v":0}]
[{"$f":"CONCATENATE('Rozpis úklidu'!A13,\" / frekvence: \",'Rozpis úklidu'!F13)","v":"037 -sklad prádla -odpisy / frekvence: čtvrtletně"},null,{"$f":"IF('Rozpis úklidu'!N13=0,'Rozpis úklidu'!M13*B54/60,'Rozpis úklidu'!N13*B54/60)","v":0},{"$f":"'Rozpis úklidu'!L13","v":"Typová činnost č. 3"},{"$f":"'Rozpis úklidu'!P13*F54","v":0},0,{"$f":"IF(F54<B54,(B54-F54)*('Rozpis úklidu'!P13)*2,0)","v":0}]
[{"$f":"CONCATENATE('Rozpis úklidu'!A14,\" / frekvence: \",'Rozpis úklidu'!F14)","v":"053 -sklad drogerie / frekvence: čtvrtletně"},null,{"$f":"IF('Rozpis úklidu'!N14=0,'Rozpis úklidu'!M14*B55/60,'Rozpis úklidu'!N14*B55/60)","v":0},{"$f":"'Rozpis úklidu'!L14","v":"Typová činnost č. 3"},{"$f":"'Rozpis úklidu'!P14*F55","v":0},0,{"$f":"IF(F55<B55,(B55-F55)*('Rozpis úklidu'!P14)*2,0)","v":0}]
[{"$f":"CONCATENATE('Rozpis úklidu'!A15,\" / frekvence: \",'Rozpis úklidu'!F15)","v":"024 -sklad  / frekvence: čtvrtletně"},null,{"$f":"IF('Rozpis úklidu'!N15=0,'Rozpis úklidu'!M15*B56/60,'Rozpis úklidu'!N15*B56/60)","v":0},{"$f":"'Rozpis úklidu'!L15","v":"Typová činnost č. 3"},{"$f":"'Rozpis úklidu'!P15*F56","v":0},0,{"$f":"IF(F56<B56,(B56-F56)*('Rozpis úklidu'!P15)*2,0)","v":0}]
[{"$f":"CONCATENATE('Rozpis úklidu'!A16,\" / frekvence: \",'Rozpis úklidu'!F16)","v":"020 -dílna / frekvence: měsíčně"},null,{"$f":"IF('Rozpis úklidu'!N16=0,'Rozpis úklidu'!M16*B57/60,'Rozpis úklidu'!N16*B57/60)","v":0},{"$f":"'Rozpis úklidu'!L16","v":"Typová činnost č. 3"},{"$f":"'Rozpis úklidu'!P16*F57","v":0},0,{"$f":"IF(F57<B57,(B57-F57)*('Rozpis úklidu'!P16)*2,0)","v":0}]
[{"$f":"CONCATENATE('Rozpis úklidu'!A17,\" / frekvence: \",'Rozpis úklidu'!F17)","v":"038 -údržba / frekvence: měsíčně"},null,{"$f":"IF('Rozpis úklidu'!N17=0,'Rozpis úklidu'!M17*B58/60,'Rozpis úklidu'!N17*B58/60)","v":0},{"$f":"'Rozpis úklidu'!L17","v":"Typová činnost č. 3"},{"$f":"'Rozpis úklidu'!P17*F58","v":0},0,{"$f":"IF(F58<B58,(B58-F58)*('Rozpis úklidu'!P17)*2,0)","v":0}]
[{"$f":"CONCATENATE('Rozpis úklidu'!A18,\" / frekvence: \",'Rozpis úklidu'!F18)","v":"wc + sprcha údržby / frekvence: týdně"},null,{"$f":"IF('Rozpis úklidu'!N18=0,'Rozpis úklidu'!M18*B59/60,'Rozpis úklidu'!N18*B59/60)","v":0},{"$f":"'Rozpis úklidu'!L18","v":"Typová činnost č. 14 a 15"},{"$f":"'Rozpis úklidu'!P18*F59","v":0},0,{"$f":"IF(F59<B59,(B59-F59)*('Rozpis úklidu'!P18)*2,0)","v":0}]
[{"$f":"CONCATENATE('Rozpis úklidu'!A19,\" / frekvence: \",'Rozpis úklidu'!F19)","v":"036-sklad / frekvence: týdně"},null,{"$f":"IF('Rozpis úklidu'!N19=0,'Rozpis úklidu'!M19*B60/60,'Rozpis úklidu'!N19*B60/60)","v":0},{"$f":"'Rozpis úklidu'!L19","v":"Typová činnost č. 3"},{"$f":"'Rozpis úklidu'!P19*F60","v":0},0,{"$f":"IF(F60<B60,(B60-F60)*('Rozpis úklidu'!P19)*2,0)","v":0}]
[{"$f":"CONCATENATE('Rozpis úklidu'!A20,\" / frekvence: \",'Rozpis úklidu'!F20)","v":"wc + sprcha sklad 36 / frekvence: týdně"},null,{"$f":"IF('Rozpis úklidu'!N20=0,'Rozpis úklidu'!M20*B61/60,'Rozpis úklidu'!N20*B61/60)","v":0},{"$f":"'Rozpis úklidu'!L20","v":"Typová činnost č. 14 a 15"},{"$f":"'Rozpis úklidu'!P20*F61","v":0},0,{"$f":"IF(F61<B61,(B61-F61)*('Rozpis úklidu'!P20)*2,0)","v":0}]
[{"$f":"CONCATENATE('Rozpis úklidu'!A22,\" / frekvence: \",'Rozpis úklidu'!F22)","v":"162 - sklad lůžkovin / frekvence: týdně"},null,{"$f":"IF('Rozpis úklidu'!N22=0,'Rozpis úklidu'!M22*B62/60,'Rozpis úklidu'!N22*B62/60)","v":0},{"$f":"'Rozpis úklidu'!L22","v":"Typová činnost č. 1"},{"$f":"'Rozpis úklidu'!P22*F62","v":0},0,{"$f":"IF(F62<B62,(B62-F62)*('Rozpis úklidu'!P22)*2,0)","v":0}]
[{"$f":"CONCATENATE('Rozpis úklidu'!A24,\" / frekvence: \",'Rozpis úklidu'!F24)","v":"recepce+balkon / frekvence: denně"},null,{"$f":"IF('Rozpis úklidu'!N24=0,'Rozpis úklidu'!M24*B63/60,'Rozpis úklidu'!N24*B63/60)","v":0},{"$f":"'Rozpis úklidu'!L24","v":"Typová činnost č. 2 a 3"},{"$f":"'Rozpis úklidu'!P24*F63","v":0},0,{"$f":"IF(F63<B63,(B63-F63)*('Rozpis úklidu'!P24)*2,0)","v":0}]
[{"$f":"CONCATENATE('Rozpis úklidu'!A25,\" / frekvence: \",'Rozpis úklidu'!F25)","v":"společenská místnost- kuchyň+ soc.zař+ balkon / frekvence: denně"},null,{"$f":"IF('Rozpis úklidu'!N25=0,'Rozpis úklidu'!M25*B64/60,'Rozpis úklidu'!N25*B64/60)","v":0},{"$f":"'Rozpis úklidu'!L25","v":"Typová činnost č. 2, 3, 5, 14 a 15"},{"$f":"'Rozpis úklidu'!P25*F64","v":0},0,{"$f":"IF(F64<B64,(B64-F64)*('Rozpis úklidu'!P25)*2,0)","v":0}]
[{"$f":"CONCATENATE('Rozpis úklidu'!A26,\" / frekvence: \",'Rozpis úklidu'!F26)","v":"2x kancelář(vedoucí, zástup) / frekvence: týdně"},null,{"$f":"IF('Rozpis úklidu'!N26=0,'Rozpis úklidu'!M26*B65/60,'Rozpis úklidu'!N26*B65/60)","v":0},{"$f":"'Rozpis úklidu'!L26","v":"Typová činnost č. 3"},{"$f":"'Rozpis úklidu'!P26*F65","v":0},0,{"$f":"IF(F65<B65,(B65-F65)*('Rozpis úklidu'!P26)*2,0)","v":0}]
[{"$f":"CONCATENATE('Rozpis úklidu'!A27,\" / frekvence: \",'Rozpis úklidu'!F27)","v":"předsíň / frekvence: týdně"},null,{"$f":"IF('Rozpis úklidu'!N27=0,'Rozpis úklidu'!M27*B66/60,'Rozpis úklidu'!N27*B66/60)","v":0},{"$f":"'Rozpis úklidu'!L27","v":"Typová činnost č. 3"},{"$f":"'Rozpis úklidu'!P27*F66","v":0},0,{"$f":"IF(F66<B66,(B66-F66)*('Rozpis úklidu'!P27)*2,0)","v":0}]
[{"$f":"CONCATENATE('Rozpis úklidu'!A28,\" / frekvence: \",'Rozpis úklidu'!F28)","v":"wc + sprcha  (vedení) / frekvence: týdně"},null,{"$f":"IF('Rozpis úklidu'!N28=0,'Rozpis úklidu'!M28*B67/60,'Rozpis úklidu'!N28*B67/60)","v":0},{"$f":"'Rozpis úklidu'!L28","v":"Typová činnost č. 14 a 15"},{"$f":"'Rozpis úklidu'!P28*F67","v":0},0,{"$f":"IF(F67<B67,(B67-F67)*('Rozpis úklidu'!P28)*2,0)","v":0}]
[{"$f":"CONCATENATE('Rozpis úklidu'!A29,\" / frekvence: \",'Rozpis úklidu'!F29)","v":"chodba přízemí obě budovy / frekvence: denně"},null,{"$f":"IF('Rozpis úklidu'!N29=0,'Rozpis úklidu'!M29*B68/60,'Rozpis úklidu'!N29*B68/60)","v":0},{"$f":"'Rozpis úklidu'!L29","v":"Typová činnost č. 1"},{"$f":"'Rozpis úklidu'!P29*F68","v":0},0,{"$f":"IF(F68<B68,(B68-F68)*('Rozpis úklidu'!P29)*2,0)","v":0}]
[{"$f":"CONCATENATE('Rozpis úklidu'!A30,\" / frekvence: \",'Rozpis úklidu'!F30)","v":"vstupní hala / frekvence: denně"},null,{"$f":"IF('Rozpis úklidu'!N30=0,'Rozpis úklidu'!M30*B69/60,'Rozpis úklidu'!N30*B69/60)","v":0},{"$f":"'Rozpis úklidu'!L30","v":"Typová činnost č. 1"},{"$f":"'Rozpis úklidu'!P30*F69","v":0},0,{"$f":"IF(F69<B69,(B69-F69)*('Rozpis úklidu'!P30)*2,0)","v":0}]
[{"$f":"CONCATENATE('Rozpis úklidu'!A31,\" / frekvence: \",'Rozpis úklidu'!F31)","v":"vstupní schodiště přední / frekvence: denně"},null,{"$f":"IF('Rozpis úklidu'!N31=0,'Rozpis úklidu'!M31*B70/60,'Rozpis úklidu'!N31*B70/60)","v":0},{"$f":"'Rozpis úklidu'!L31","v":"Typová činnost č. 1"},{"$f":"'Rozpis úklidu'!P31*F70","v":0},0,{"$f":"IF(F70<B70,(B70-F70)*('Rozpis úklidu'!P31)*2,0)","v":0}]
[{"$f":"CONCATENATE('Rozpis úklidu'!A32,\" / frekvence: \",'Rozpis úklidu'!F32)","v":"vstupní schodiště zadní / frekvence: týdně"},null,{"$f":"IF('Rozpis úklidu'!N32=0,'Rozpis úklidu'!M32*B71/60,'Rozpis úklidu'!N32*B71/60)","v":0},{"$f":"'Rozpis úklidu'!L32","v":"Typová činnost č. 1"},{"$f":"'Rozpis úklidu'!P32*F71","v":0},{"$f":"B71","v":0},{"$f":"IF(F71<B71,(B71-F71)*('Rozpis úklidu'!P32)*2,0)","v":0}]
[{"$f":"CONCATENATE('Rozpis úklidu'!A61,\" / frekvence: \",'Rozpis úklidu'!F61)","v":"studovna velká 10. patro / frekvence: týdně"},null,{"$f":"IF('Rozpis úklidu'!N61=0,'Rozpis úklidu'!M61*B72/60,'Rozpis úklidu'!N61*B72/60)","v":0},{"$f":"'Rozpis úklidu'!L61","v":"Typová činnost č. 3"},{"$f":"'Rozpis úklidu'!P61*F72","v":0},{"$f":"B72","v":0},{"$f":"IF(F72<B72,(B72-F72)*('Rozpis úklidu'!P61)*2,0)","v":0}]
[{"$f":"CONCATENATE('Rozpis úklidu'!A62,\" / frekvence: \",'Rozpis úklidu'!F62)","v":"studovna velká 11. patro / frekvence: týdně"},null,{"$f":"IF('Rozpis úklidu'!N62=0,'Rozpis úklidu'!M62*B73/60,'Rozpis úklidu'!N62*B73/60)","v":0},{"$f":"'Rozpis úklidu'!L62","v":"Typová činnost č. 3"},{"$f":"'Rozpis úklidu'!P62*F73","v":0},{"$f":"B73","v":0},{"$f":"IF(F73<B73,(B73-F73)*('Rozpis úklidu'!P62)*2,0)","v":0}]
[{"$f":"CONCATENATE('Rozpis úklidu'!A69,\" / frekvence: \",'Rozpis úklidu'!F69)","v":"studovna malá 10. patro / frekvence: týdně"},null,{"$f":"IF('Rozpis úklidu'!N69=0,'Rozpis úklidu'!M69*B74/60,'Rozpis úklidu'!N69*B74/60)","v":0},{"$f":"'Rozpis úklidu'!L69","v":"Typová činnost č. 3"},{"$f":"'Rozpis úklidu'!P69*F74","v":0},{"$f":"B74","v":0},{"$f":"IF(F74<B74,(B74-F74)*('Rozpis úklidu'!P69)*2,0)","v":0}]
[{"$f":"CONCATENATE('Rozpis úklidu'!A70,\" / frekvence: \",'Rozpis úklidu'!F70)","v":"studovna malá 11. patro / frekvence: týdně"},null,{"$f":"IF('Rozpis úklidu'!N70=0,'Rozpis úklidu'!M70*B75/60,'Rozpis úklidu'!N70*B75/60)","v":0},{"$f":"'Rozpis úklidu'!L70","v":"Typová činnost č. 3"},{"$f":"'Rozpis úklidu'!P70*F75","v":0},{"$f":"B75","v":0},{"$f":"IF(F75<B75,(B75-F75)*('Rozpis úklidu'!P70)*2,0)","v":0}]
[{"$f":"CONCATENATE('Rozpis úklidu'!A81,\" / frekvence: \",'Rozpis úklidu'!F81)","v":"schodiště na střechu, levá+pravá budova / frekvence: čtvrtletně"},null,{"$f":"IF('Rozpis úklidu'!N81=0,'Rozpis úklidu'!M81*B76/60,'Rozpis úklidu'!N81*B76/60)","v":0},{"$f":"'Rozpis úklidu'!L81","v":"Typová činnost č. 1"},{"$f":"'Rozpis úklidu'!P81*F76","v":0},{"$f":"B76","v":0},{"$f":"IF(F76<B76,(B76-F76)*('Rozpis úklidu'!P81)*2,0)","v":0}]
[{"$f":"CONCATENATE('Rozpis úklidu'!A82,\" / frekvence: \",'Rozpis úklidu'!F82)","v":"chodby 10 p. / frekvence: denně"},null,{"$f":"IF('Rozpis úklidu'!N82=0,'Rozpis úklidu'!M82*B77/60,'Rozpis úklidu'!N82*B77/60)","v":0},{"$f":"'Rozpis úklidu'!L82","v":"Typová činnost č. 1"},{"$f":"'Rozpis úklidu'!P82*F77","v":0},{"$f":"B77","v":0},{"$f":"IF(F77<B77,(B77-F77)*('Rozpis úklidu'!P82)*2,0)","v":0}]
[{"$f":"CONCATENATE('Rozpis úklidu'!A83,\" / frekvence: \",'Rozpis úklidu'!F83)","v":"chodby 11 p. / frekvence: denně"},null,{"$f":"IF('Rozpis úklidu'!N83=0,'Rozpis úklidu'!M83*B78/60,'Rozpis úklidu'!N83*B78/60)","v":0},{"$f":"'Rozpis úklidu'!L83","v":"Typová činnost č. 1"},{"$f":"'Rozpis úklidu'!P83*F78","v":0},{"$f":"B78","v":0},{"$f":"IF(F78<B78,(B78-F78)*('Rozpis úklidu'!P83)*2,0)","v":0}]
[{"$f":"CONCATENATE('Rozpis úklidu'!A84,\" / frekvence: \",'Rozpis úklidu'!F84)","v":"chodby 12 p. / frekvence: denně"},null,{"$f":"IF('Rozpis úklidu'!N84=0,'Rozpis úklidu'!M84*B79/60,'Rozpis úklidu'!N84*B79/60)","v":0},{"$f":"'Rozpis úklidu'!L84","v":"Typová činnost č. 1"},{"$f":"'Rozpis úklidu'!P84*F79","v":0},{"$f":"B79","v":0},{"$f":"IF(F79<B79,(B79-F79)*('Rozpis úklidu'!P84)*2,0)","v":0}]
[{"$f":"CONCATENATE('Rozpis úklidu'!A91,\" / frekvence: \",'Rozpis úklidu'!F91)","v":"vstupní dveře do koleje / frekvence: týdně"},null,{"$f":"IF('Rozpis úklidu'!N91=0,'Rozpis úklidu'!M91*B80/60,'Rozpis úklidu'!N91*B80/60)","v":0},{"$f":"'Rozpis úklidu'!L91","v":"Typová činnost č. 12"},{"$f":"'Rozpis úklidu'!P91*F80","v":0},0,{"$f":"IF(F80<B80,(B80-F80)*('Rozpis úklidu'!P91)*2,0)","v":0}]
[null,"celkem hodin",{"$f":"SUM(C46:C80)","v":0},"K FAKTURACI CELKEM:",{"$f":"SUM(E46:E80)","v":0},null,{"$f":"SUM(G46:G80)","v":0}]
["Podpis vedoucí směny:",null,null,"Podpis zástupce vedení koleje:"]
["Tisk: Ctrl+s"]
["Karta úklidu",null,null,{"$f":"'Rozpis úklidu'!A1","v":"kolej: Thalerova, VŠE"}]
["SEZONNÍ ÚKLID                         DEN:",{"$f":"NOW()","v":"2025-01-22T13:48:11.870"},{"$f":"CHOOSE(WEEKDAY(B85,2),\"pondělí\",\"úterý\",\"středa\",\"čtvrtek\",\"pátek\",\"sobota\",\"neděle\")","v":"středa"}]
["Úklidová jednotka","počet\núklidových jednotek","Doba úklidu\n[hod.]","Popis činnosti","cena celkem za všechny úklidové jednotky \n(prac. dny)\n[Kč]","Správně\nuklizené\njednotky","Smluvní pokuta\n[Kč]","Poznámka"]
[{"$f":"'Rozpis úklidu'!A37","v":"Komfort.buňky,soc.zařízení,kuchyň+balkon HOTEL - průběžně"},null,{"$f":"IF('Rozpis úklidu'!N37=0,'Rozpis úklidu'!M37*B87/60,'Rozpis úklidu'!N37*B87/60)","v":0},{"$f":"'Rozpis úklidu'!L37","v":"Typová činnost č. 9"},{"$f":"'Rozpis úklidu'!P37*F87","v":0},{"$f":"B87","v":0},{"$f":"IF(F87<B87,(B87-F87)*('Rozpis úklidu'!P37)*2,0)","v":0}]
[{"$f":"'Rozpis úklidu'!A38","v":"Komfort.buňky,soc.zařízení,kuchyň+balkon HOTEL - po vystěhování"},null,{"$f":"IF('Rozpis úklidu'!N38=0,'Rozpis úklidu'!M38*B88/60,'Rozpis úklidu'!N38*B88/60)","v":0},{"$f":"'Rozpis úklidu'!L38","v":"Typová činnost č. 8"},{"$f":"'Rozpis úklidu'!P38*F88","v":0},0,{"$f":"IF(F88<B88,(B88-F88)*('Rozpis úklidu'!P38)*2,0)","v":0}]
[{"$f":"'Rozpis úklidu'!A53","v":"pokoj jednolůžkový-wc + koupelna"},null,{"$f":"IF('Rozpis úklidu'!N53=0,'Rozpis úklidu'!M53*B89/60,'Rozpis úklidu'!N53*B89/60)","v":0},{"$f":"'Rozpis úklidu'!L53","v":"Typová činnost č. 14 a 15"},{"$f":"'Rozpis úklidu'!P53*F89","v":0},{"$f":"B89","v":0},{"$f":"IF(F89<B89,(B89-F89)*('Rozpis úklidu'!P53)*2,0)","v":0}]
[{"$f":"'Rozpis úklidu'!A54","v":"pokoj jednolůžkový"},null,{"$f":"IF('Rozpis úklidu'!N54=0,'Rozpis úklidu'!M54*B90/60,'Rozpis úklidu'!N54*B90/60)","v":0},{"$f":"'Rozpis úklidu'!L54","v":"Typová činnost č. 6"},{"$f":"'Rozpis úklidu'!P54*F90","v":0},{"$f":"B90","v":0},{"$f":"IF(F90<B90,(B90-F90)*('Rozpis úklidu'!P54)*2,0)","v":0}]
[{"$f":"'Rozpis úklidu'!A55","v":"pokoj jednolůžkový-předsíň"},null,{"$f":"IF('Rozpis úklidu'!N55=0,'Rozpis úklidu'!M55*B91/60,'Rozpis úklidu'!N55*B91/60)","v":0},{"$f":"'Rozpis úklidu'!L55","v":"Typová činnost č. 7"},{"$f":"'Rozpis úklidu'!P55*F91","v":0},0,{"$f":"IF(F91<B91,(B91-F91)*('Rozpis úklidu'!P55)*2,0)","v":0}]
[{"$f":"'Rozpis úklidu'!A87","v":"okna"},null,{"$f":"IF('Rozpis úklidu'!N87=0,'Rozpis úklidu'!M87*B92/60,'Rozpis úklidu'!N87*B92/60)","v":0},{"$f":"'Rozpis úklidu'!L87","v":"Typová činnost č. 12"},{"$f":"'Rozpis úklidu'!P87*F92","v":0},{"$f":"B92","v":0},{"$f":"IF(F92<B92,(B92-F92)*('Rozpis úklidu'!P87)*2,0)","v":0}]
[{"$f":"'Rozpis úklidu'!A88","v":"Balkonové dveře"},null,{"$f":"IF('Rozpis úklidu'!N88=0,'Rozpis úklidu'!M88*B93/60,'Rozpis úklidu'!N88*B93/60)","v":0},{"$f":"'Rozpis úklidu'!L88","v":"Typová činnost č. 12"},{"$f":"'Rozpis úklidu'!P88*F93","v":0},{"$f":"B93","v":0},{"$f":"IF(F93<B93,(B93-F93)*('Rozpis úklidu'!P88)*2,0)","v":0}]
[null,"celkem hodin",{"$f":"SUM(C87:C93)","v":0},"K FAKTURACI CELKEM:",{"$f":"SUM(E87:E93)","v":0},null,{"$f":"SUM(G87:G93)","v":0}]
["Podpis vedoucí směny:",null,null,"Podpis zástupce vedení koleje:"]
["Tisk: Ctrl+n"]
["Karta úklidu",null,null,{"$f":"'Rozpis úklidu'!A1","v":"kolej: Thalerova, VŠE"}]
["ÚKLID O VÍKENDU                 DNE:",{"$f":"NOW()","v":"2025-01-22T13:48:11.870"},{"$f":"CHOOSE(WEEKDAY(B98,2),\"pondělí\",\"úterý\",\"středa\",\"čtvrtek\",\"pátek\",\"sobota\",\"neděle\")","v":"středa"}]
["Úklidová jednotka","počet\núklidových jednotek","Doba úklidu\n[hod.]","Popis činnosti","cena celkem za všechny úklidové jednotky \n(VÍKEND)\n[Kč]","Správně\nuklizené\njednotky","Smluvní pokuta\n[Kč]","Poznámka"]
[{"$f":"'Rozpis úklidu'!A37","v":"Komfort.buňky,soc.zařízení,kuchyň+balkon HOTEL - průběžně"},null,{"$f":"IF('Rozpis úklidu'!N37=0,'Rozpis úklidu'!M37*B100/60,'Rozpis úklidu'!N37*B100/60)","v":0},{"$f":"'Rozpis úklidu'!L37","v":"Typová činnost č. 9"},{"$f":"IF('Rozpis úklidu'!$B$2>0,'Rozpis úklidu'!P37*F100*'Rozpis úklidu'!$D$2/'Rozpis úklidu'!$B$2,'Rozpis úklidu'!P37*F100*'Rozpis úklidu'!$D$2)","v":0},{"$f":"B100","v":0},{"$f":"IF(F100<B100,(B100-F100)*('Rozpis úklidu'!P37)*2,0)","v":0}]
[{"$f":"'Rozpis úklidu'!A38","v":"Komfort.buňky,soc.zařízení,kuchyň+balkon HOTEL - po vystěhování"},null,{"$f":"IF('Rozpis úklidu'!N38=0,'Rozpis úklidu'!M38*B101/60,'Rozpis úklidu'!N38*B101/60)","v":0},{"$f":"'Rozpis úklidu'!L38","v":"Typová činnost č. 8"},{"$f":"IF('Rozpis úklidu'!$B$2>0,'Rozpis úklidu'!P38*F101*'Rozpis úklidu'!$D$2/'Rozpis úklidu'!$B$2,'Rozpis úklidu'!P38*F101*'Rozpis úklidu'!$D$2)","v":0},{"$f":"B101","v":0},{"$f":"IF(F101<B101,(B101-F101)*('Rozpis úklidu'!P38)*2,0)","v":0}]
[null,"celkem hodin/víkend",{"$f":"SUM(C100:C101)","v":0},"K FAKTURACI CELKEM:",{"$f":"SUM(E100:E101)","v":0},null,{"$f":"SUM(G100:G101)","v":0}]
["Podpis vedoucí směny:",null,null,"Podpis zástupce vedení koleje:"]

{"sheet":"Činnosti úklidu","index":3,"n_rows":35,"n_cols":2,"rows_kept":35,"cut":false,"hidden":false,"merged":[]}
[null,"Úklidová činnost"]
[null,"Úklidová činnost probíhá v čase od 07:00 hod. do 15.00 hod. v jednosměnném provozu v pětidenním pracovním týdnu, úklid hotelových pokojů musí být dle potřeby zajištěn i o víkendu. V době nastěhování a vystěhování studentů koncem letního semestru a začátkem zimního semestru stanovuje dobu pro úklid podle aktuálních potřeb vedoucí/zástupce vedoucí koleje a to včetně úklidu o víkendu. Při úklidu je potřeba používat úklidové, čistící a desinfekční prostředky vhodné pro daný předmět úklidu a dodržovat návody na použití příslušných úklidových, čistících a desinfekčních prostředků a bezpečnostní a hygienická pravidla"]
["Definice pojmů:"]
["Zametání","pomocí vhodného smetáku zamést dané podlahové plochy."]
["Vytírání ","pomocí mopu za použití vody a odpovídajícího saponátu vytřít dané podlahové plochy."]
["Mytí ","pomocí hadru, utěrky nebo houbičky, za použití vody a odpovídajícího saponátu, umýt plochy nábytku, dveří, spotřebičů, keramických a jiných obkladů, topení apod."]
["Čištění ","důkladné čištění, zvláště skvrn, za pomocí odpovídajících čisticích prostředků, ploch nábytku, dveří, spotřebičů, keramických a jiných obkladů, topení apod."]
["Desinfekce ","po umytí nebo vyčištění daných ploch, podlah, spotřebičů aj. použít podle návodu odpovídající desinfekční prostředek."]
["Leštění ","leštění všech skleněných a zrcadlových ploch za použití odpovídajícího přípravku na mytí a leštění skel."]
["Luxování ","čištění podlah za použití vysavače."]
["Strojové čištění ","se provádí za použití čistícího stroje na vodní nebo parní bázi (strojové čištění postelí, matrací, koberců apod.)."]
["Stírání prachu","setření prachu vhodnou utěrkou za použití odpovídajícího přípravku na odstranění prachu, odstranění pavučin."]
["Úklid odpadů ","řádné uvolnění, umytí, vyčištění a vydesinfikování odpadů na soc. zařízeních, WC, umývárnách a sprchových koutech za použití odpovídajících přípravků."]
["Mimořádný úklid ","úklid znečištěného WC (mimo mísu), umývárny nebo společných prostor zvratky nebo exkrementy (uklízečka vyrozumí vedoucí/zástupce vedoucí koleje)."]
["Mytí oken ","umytí parapetů na mokro za použití odpovídajícího saponátu, umytí rámů oken na mokro za použití odpovídajícího saponátu, umytí a vyleštění oken odpovídajícím přípravkem na mytí a leštění oken."]
["Zalévání květin ","zalití květin čistou odstátou vodou v přiměřeném množství s ohledem na druh rostliny. Podle potřeby použít odpovídající hnojivo v dávkování podle návodu k použití."]
["Vynášení a likvidace odpadu","vynesení odpadu ze všech odpadních nádob (i z prostoru okolo těchto nádob), a ze skartovaček, umytí odpadních nádob a doplnění pytlů na odpadky do odpadních nádob. Odpad dle možnosti vhodným způsobem třídit."]
["Doplňování hotelových potřeb ","v hotelovém provozu doplnit toaletní papír do zásobníků doplnit ručníky a hotelové mýdlo."]
[]
["Číslo typové činnosti","Popis typových pracovních činností:"]
["1.","Úklidem společných prostor, podlah chodeb, schodišť a vestibulu se rozumí:\nzamést a vytřít podlahy, odstranit našlapané žvýkačky a jiné nečistoty, vyluxovat podlahy kryté kobercem. Umýt parapety, zábradlí a hasicí přístroje umístěné na chodbách, vyleštit skleněné plochy na chodbách a ve vestibulech, setřít prach a pavučiny. Sepsat a nahlásit vedení koleje všechny závady a škody."]
["2.","Úklidem balkonů se rozumí: \nzamést a vytřít podlahy, odstranit našlapané žvýkačky a jiné nečistoty, umýt parapety a zábradlí. Odstranit pavučiny. Vynést odpady a popř. i vysypat popelníky."]
["3.","Úklidem společenských, (studoven, kluboven apod.) zájmových (posiloven, tělocvičen apod.) a zasedacích místností, kanceláří, skladů, šaten a výtahů se rozumí:\nzamést a vytřít podlahy, podlahy pokryté kobercem vyluxovat, setřít prach a pavučiny ze všech dosažitelných a volně přístupných míst a zařízení místností (topení, cvičební nářadí apod.), umýt a vyčistit skvrny kolem klik, dveří, vypínačů a světel. Srovnat nábytek a jiné vybavení místností. Srovnat nebo dověsit záclony a závěsy. Vyleštit zrcadla. Vynést odpad. Sepsat a nahlásit vedení koleje všechny závady a škody."]
["4.","Úklidem prádelen se rozumí:\nzamést a vytřít podlahy, setřít prach a pavučiny ze všech dosažitelných a volně přístupných míst a zařízení místností (praček, topení, apod.). Vyčistit filtry praček, vyčistit zásobníky na prášek. Umýt a vyčistit dveře, kliky, vypínače a světla. Srovnat nebo dověsit záclony a závěsy. Vyleštit zrcadla. Vynést odpad. Sepsat a nahlásit vedení koleje všechny závady a škody."]
["5.","Úklidem kuchyněk se rozumí:\numýt, vyčistit a vydesinfikovat sporák, vařič, mikrovlnnou troubu, digestoř, pracovní desky a zařízení místnosti kuchyňky. Umýt, vyčistit a vydesinfikovat obklady. Pokud je kuchyňka vybavena nádobím umýt nádobí. Odmrazit a vyčistit lednici. Odstranit všechny prošlé nebo kazící se potraviny. Zamést a vytřít podlahy. Vynést odpad. Setřít prach a pavučiny. Sepsat a nahlásit vedení koleje všechny závady a škody."]
["6.","Generálním úklidem pokojů po odchodu studentů se rozumí:\numýt nábytek z venku (postele, stoly, židle, police, skříně apod.) i zevnitř (skříně, šuplíky, peřináče, postele apod.) a vyčistit od skvrn. Vyleštit zrcadla a okna. Vyluxovat/strojově vyčistit matrace postelí. Setřít prach a pavučiny (včetně žaluzií). Umýt a vyčistit veškeré obložení, lišty, obrazy, dveře, kliky, rámy oken, parapety, vypínače, zásuvky, topení, světla, lampičky apod. Umýt ledničku zevnitř i zvenku. Zamést a vytřít podlahy, podlahy kryté kobercem vyluxovat, a to i pod a za postelí, křesly a závěsy. Srovnat nebo dověsit záclony a závěsy, srovnat nábytek a jiné vybavení pokoje. Vynést odpad, umýt, otřít a vyleštit odpadkový koš. Zlikvidovat případné komáry a mouchy. Vyvětrat a popř. i navonět. Sepsat a nahlásit vedení koleje všechny závady a škody. Případné nalezené věci po ubytovaných předat vedení koleje."]
["7.","Úklidem předsíní buněk se rozumí:\núklid sociálního zařízení podle bodu 14. a 15. úklid kuchyňky podle bodu 5. Zamést a vytřít podlahy. Umýt a vyčistit pracovní plochy a nábytek. Setřít prach a pavučiny. Vynést odpad. Sepsat a nahlásit vedení koleje všechny závady a škody."]
["8.","Úklidem hotelových pokojů po vystěhování se rozumí:\numýt nábytek z venku (postele, stoly, židle, police, skříně apod.) i zevnitř (skříně, šuplíky, peřináče, postele apod.) a vyčistit od skvrn. Vyleštit zrcadla a okna. Převléct a ustlat postele, vyluxovat/strojově vyčistit matrace postelí. Setřít prach a pavučiny (včetně žaluzií). Umýt a vyčistit veškeré obložení, lišty, obrazy, dveře, kliky, rámy oken, parapety, vypínače, zásuvky, televizi, topení, světla, lampičky apod. Umýt nádobí. Umýt ledničku zevnitř i zvenku, umytí koupelny (sprchový kout, WC, umyvadlo). Zamést a vytřít podlahy, podlahy kryté kobercem vyluxovat, a to i pod a za postelí, křesly a závěsy. Srovnat nebo dověsit záclony a závěsy, srovnat nábytek a jiné vybavení pokoje. Vynést odpad, umýt, otřít a vyleštit odpadkový koš. Zlikvidovat případné komáry a mouchy. Doplnit hotelové potřeby. Vyvětrat a popř. i navonět. Předat složené použité prádlo a ručníky skladní. Sepsat a nahlásit vedení koleje všechny závady a škody. Případné nalezené věci po hostech předat vedení koleje."]
["9.","Úklidem hotelových pokojů v průběhu ubytování se rozumí:\nustlání postelí, popř. výměna ložního prádla každý 4. den pobytu, výměna osušek a ručníků, doplnění toaletního papíru, vynesení odpadků, umytí koupelny (sprchový kout, WC, umyvadlo), vytření podlahy."]
["10.","Přebráním uklizeného pokoje po studentech se rozumí:\npodle bodu 6. a 7. zkontrolovat úklid provedený studenty. Přebrat klíče od pokoje. Podepsat / potvrdit v aplikaci potvrzení o řádně provedeném úklidu a odevzdání klíčů. Sepsat a nahlásit vedení koleje všechny závady a škody. V případě nutnosti upozornit studenty na nedostatky v úklidu s tím, že je musí ve stanovené době odstranit, po té provést novou kontrolu úklidu. V případě, že ani napodruhé nebude pokoj řádně uklizen nahlásit tuto skutečnost vedení koleje. Dle pokynů vedení koleje umístit ložní prádlo na postele."]
["11.","Úklidem výtahu se rozumí:\nzametení a vytření podlahy, vyčištění dveřních drážek, mytí stěn, mytí světel, jsou li instalována vyleštění zrcadel."]
["12.","Mytím oken se rozumí:\nmytí a leštění skel, mytí rámů, mytí parapetu, jsou-li instalovány setření žaluzií."]
["13.","Čištěním matrací:\nvyčištění matrací parním strojem."]
["14.","Úklidem WC se rozumí:\numýt, vyčistit a vydesinfikovat místnost WC, umýt záchodovou mísu zevnitř i zvenku umýt nohu a trubku za WC, umýt prkýnko a nádobu na splachovací vodu, popř. umýt pisoáry, umyvadla, baterie, obklady, odpady, podlahy a dveře. Otřít držák na toaletní papír. Umýt dlaždičky a silikon od plísně. Vylít vodu a otřít pouzdro na WC štětku. Vyleštit zrcadla. Vynést odpad. Setřít prach a pavučiny. Vždy za použití odpovídajícího mycího/čistícího přípravku."]
["15.","Úklidem koupelen a sprch se rozumí:\numýt, vyčistit a vydesinfikovat umyvadlo zevnitř i zvenku včetně trubek pod ním, baterie, sprchový kout, obklady, poličku nad umyvadlem i ve sprchovém koutě, odpady, podlahy a dveře. Umýt stěny sprchového koutu, gumové těsnění popř. závěs sprchového koutu. Odstranit rez a vodní kámen. Vynést odpad. Vyleštit zrcadlo, poličku, sprchu a držák na sprchu. Umýt dlaždičky a silikon od plísně. Vynést odpad. Setřít prach a pavučiny. Vždy za použití odpovídajícího mycího/čistícího přípravku"]